Workbook

Sheet Instructions
A1: Using this spreadsheet
B2: This spreadsheet will help the engineer calculate the compensation network for a voltage mode continuous current non isolated buck converter using type III compensation network.
B3: Getting Started:
A4: 1 | B4: Ensure Tools => Add Ins => Analysis ToolPak is selected otherwise spreadsheet will not work
A5: 2 | B5: Green Cells show where manually entered data is placed
A6: 3 | B6: White cells are the calculated results
A7: 4 | B7: Blue cells are the final results for the design and plots
A8: 5 | B8: All data is entered and results viewed on the "Input and Results" worksheet
B10: Required Data:
B11: Power Supply General Parameters
B12: Input voltage in Volts
B13: Output voltage Volts
B14: Output current in Amps
B15: Loop Requirements
B16: Cross over frequency in kHz, recommend 1/5th to 1/10th the switching frequency
B17: Phase margin in degrees, recommend 60°
B18: Output Filter Parameters
B19: Output inductor value in micro Henries
B20: Output inductor DC resistance in milliohms
B21: Output electrolytic capacitor value in micro Farads (set Qty. to 0 if not used)
B22: Electrolytic capacitor equivalent series resistance in milliohms
B23: Output ceramic capacitor value in micro Farads (set Qty. to 0 if not used)
B24: Ceramic capacitor equivalent series resistance in milliohms
B25: Controller part number (select from pull down list)
B27: Procedure:
A28: 1 | B28: Enter data in relevant cells on sheet titled "Input and Results"
A29: 2 | B29: Select IC part number from pull down menu (Cell B18)
B30: a. if using the TPS4005X or TPS4007x you should enter the RT and RKFF values in cells B21 and B22
B31: b. if using the TPS40400 you need to enter the switching frequency (in kHz) is cell B21
A32: 3 | B32: Set "Manually input R's & C's:" to "No" (Cell K4)
A33: 4 | B33: Results are shown in the blue cells
A34: 5 | B34: To keep these calculated results click on green box "Copy Std. Values to Man. Values" this will
B35: a. Copy the R's and C's from Cells G13-G19 to cells J5-J11.
B36: b. Sets "Manually input R's & C's:" to "Yes"
B37: The user can now modify the power supply parameters with a fixed compensation network
A38: 6 | B38: User can also manually input zero and pole locations by using cells J14 to J17 and selecting K13 = Yes
B40: Applicable Parts
B41: TPS40007, TPS40009, TPS40021, TPS40040, TPS40041, TPS40055, TPS40057, TPS40075, TPS40077, TPS40101, TPS40170, TPS40190, TPS40192, TPS40193, TPS40195, TPS40200, TPS40303, TPS40304, TPS40305, TPS40322, TPS40400, TPS51113, TPS5130, TPS53311, TPS56121, TPS56221, TPS53316, TPS53313

Sheet Input and Results
A1: See "Instructions" sheet for details on using this spreadsheet. | X1: Resistors | AB1: Capacitors
R2: IC Parameters (from data sheet)
A3: PSU Parameters | F3: Calculated Zero's, Pole's, R's and C's: | J3: Manually enter | M3: Power Train Poles and Zeros | R3: P/N | S3: VRAMP | T3: VREF | U3: GBWP | V3: DCGAIN | X3: ='Input and Results'!H6 -> R_2 | Y3: ='Input and Results'!I6 -> 1996.57021 | Z3: =IF((10^(LOG(Y3)-INT(LOG(Y3)))*100)-VLOOKUP((10^(LOG(Y3)-INT(LOG(Y3)))*100),X$7:X$75,1)<VLOOKUP((10^(LOG(Y3)-INT(LOG(Y3)))*100),X$7:Y$75,2)-(10^(LOG(Y3)-INT(LOG(Y3)))*100),VLOOKUP((10^(LOG(Y3)-INT(LOG(Y3)))*100),X$7:X$75,1),VLOOKUP((10^(LOG(Y3)-INT(LOG(Y3)))*100),X$7:Y$75,2)) -> 200 | AA3: =Z3*10^INT(LOG(Y3))/100 -> 2000 | AB3: ='Input and Results'!H9 -> C_1 | AC3: ='Input and Results'!I9 -> 650.3981298 | AD3: =IF((10^(LOG(AC3)-INT(LOG(AC3))))-VLOOKUP((10^(LOG(AC3)-INT(LOG(AC3)))),AB$7:AB$18,1)<VLOOKUP((10^(LOG(AC3)-INT(LOG(AC3)))),AB$7:AC$18,2)-(10^(LOG(AC3)-INT(LOG(AC3)))),VLOOKUP((10^(LOG(AC3)-INT(LOG(AC3)))),AB$7:AB$18,1),VLOOKUP((10^(LOG(AC3)-INT(LOG(AC3)))),AB$7:AC$18,2)) -> 6.8 | AE3: =IF(I9>10000,AD6*10^INT(LOG(AC3)),AD3*10^INT(LOG(AC3))) -> 680
A4: VIN | B4: 12 | C4: V | J4: R's & C's: | K4: Yes | M4: LC Double Pole | N4: =1/(2*PI()*SQRT(LOUT*10^-6*(COUT+MLCC)*10^-6))*10^-3 -> 6.94609118 | O4: kHz | S4: V | T4: V | U4: MHz | V4: dB | X4: ='Input and Results'!H7 -> R_3 | Y4: ='Input and Results'!I7 -> 23211.48012 | Z4: =IF((10^(LOG(Y4)-INT(LOG(Y4)))*100)-VLOOKUP((10^(LOG(Y4)-INT(LOG(Y4)))*100),X$7:X$75,1)<VLOOKUP((10^(LOG(Y4)-INT(LOG(Y4)))*100),X$7:Y$75,2)-(10^(LOG(Y4)-INT(LOG(Y4)))*100),VLOOKUP((10^(LOG(Y4)-INT(LOG(Y4)))*100),X$7:X$75,1),VLOOKUP((10^(LOG(Y4)-INT(LOG(Y4)))*100),X$7:Y$75,2)) -> 237 | AA4: =Z4*10^INT(LOG(Y4))/100 -> 23700 | AB4: ='Input and Results'!H10 -> C_2 | AC4: ='Input and Results'!I10 -> 336.1503354 | AD4: =IF((10^(LOG(AC4)-INT(LOG(AC4))))-VLOOKUP((10^(LOG(AC4)-INT(LOG(AC4)))),AB$7:AB$18,1)<VLOOKUP((10^(LOG(AC4)-INT(LOG(AC4)))),AB$7:AC$18,2)-(10^(LOG(AC4)-INT(LOG(AC4)))),VLOOKUP((10^(LOG(AC4)-INT(LOG(AC4)))),AB$7:AB$18,1),VLOOKUP((10^(LOG(AC4)-INT(LOG(AC4)))),AB$7:AC$18,2)) -> 3.3 | AE4: =IF(I10>10000,AD7*10^INT(LOG(AC4)),AD4*10^INT(LOG(AC4))) -> 330
A5: VOUT | B5: 3.3 | C5: V | F5: Fz_1 | G5: =IF(K13="NO",Fco/G9*1000,J14) -> 20397.81966 | H5: R_1 | I5: =J5 -> 10000 | J5: 10000 | K5: W | M5: Electrolytic ESR Zero | N5: =IF(D13=0, "None",1/(2*PI()*COUT*10^-6*ESR*10^-3)*10^-3) -> 30.14298165 | O5: kHz | R5: TPS40007 | S5: 0.87 | T5: 0.7 | U5: 5 | V5: 55 | X5: ='Input and Results'!H8 -> R_bias | Y5: ='Input and Results'!I8 -> 2222.222222 | Z5: =IF((10^(LOG(Y5)-INT(LOG(Y5)))*100)-VLOOKUP((10^(LOG(Y5)-INT(LOG(Y5)))*100),X$7:X$75,1)<VLOOKUP((10^(LOG(Y5)-INT(LOG(Y5)))*100),X$7:Y$75,2)-(10^(LOG(Y5)-INT(LOG(Y5)))*100),VLOOKUP((10^(LOG(Y5)-INT(LOG(Y5)))*100),X$7:X$75,1),VLOOKUP((10^(LOG(Y5)-INT(LOG(Y5)))*100),X$7:Y$75,2)) -> 220 | AA5: =Z5*10^INT(LOG(Y5))/100 -> 2200 | AB5: ='Input and Results'!H11 -> C_3 | AC5: ='Input and Results'!I11 -> 67.11477459 | AD5: =IF((10^(LOG(AC5)-INT(LOG(AC5))))-VLOOKUP((10^(LOG(AC5)-INT(LOG(AC5)))),AB$7:AB$18,1)<VLOOKUP((10^(LOG(AC5)-INT(LOG(AC5)))),AB$7:AC$18,2)-(10^(LOG(AC5)-INT(LOG(AC5)))),VLOOKUP((10^(LOG(AC5)-INT(LOG(AC5)))),AB$7:AB$18,1),VLOOKUP((10^(LOG(AC5)-INT(LOG(AC5)))),AB$7:AC$18,2)) -> 6.8 | AE5: =IF(I11>10000,AD8*10^INT(LOG(AC5)),AD5*10^INT(LOG(AC5))) -> 68
A6: IOUT_max | B6: 18 | C6: A | F6: Fz_2 | G6: =IF(K13="NO",Fco/G9*1000,J15) -> 20397.81966 | H6: R_2 | I6: =1/(2*PI()*Fp_1*I9*10^-12) -> 1996.57021 | J6: 2000 | K6: W | M6: Ceramic ESR Zero | N6: =IF(D16=0,"None",1/(2*PI()*MLCC*10^-6*MLCC_ESR*10^-3)*10^-3) -> 15915.49431 | O6: kHz | R6: TPS40009 | S6: 0.87 | T6: 0.7 | U6: 5 | V6: 55 | AB6: C values up to 10nF | AD6: =IF((10^(LOG(AC3)-INT(LOG(AC3))))-VLOOKUP((10^(LOG(AC3)-INT(LOG(AC3)))),AB$20:AB$25,1)<VLOOKUP((10^(LOG(AC3)-INT(LOG(AC3)))),AB$20:AC$25,2)-(10^(LOG(AC3)-INT(LOG(AC3)))),VLOOKUP((10^(LOG(AC3)-INT(LOG(AC3)))),AB$20:AB$25,1),VLOOKUP((10^(LOG(AC3)-INT(LOG(AC3)))),AB$20:AC$25,2)) -> 6.8
A7: Fco | B7: 50 | C7: kHz | F7: Fp_1 | G7: =IF(K13="NO",Fco*G9*1000,J16) -> 122562.119 | H7: R_3 | I7: =1/(2*PI()*Fz_2*I10*10^-12) -> 23211.48012 | J7: 23700 | K7: W | R7: TPS40021 | S7: 0.87 | T7: 0.7 | U7: 5 | V7: 55 | X7: 100 | Y7: 105 | Z7: E24 | AB7: 1 | AC7: 1.2 | AD7: =IF((10^(LOG(AC4)-INT(LOG(AC4))))-VLOOKUP((10^(LOG(AC4)-INT(LOG(AC4)))),AB$20:AB$25,1)<VLOOKUP((10^(LOG(AC4)-INT(LOG(AC4)))),AB$20:AC$25,2)-(10^(LOG(AC4)-INT(LOG(AC4)))),VLOOKUP((10^(LOG(AC4)-INT(LOG(AC4)))),AB$20:AB$25,1),VLOOKUP((10^(LOG(AC4)-INT(LOG(AC4)))),AB$20:AC$25,2)) -> 3.3
A8: Phase Margin | B8: 60 | C8: ° | F8: Fp_2 | G8: =IF(K13="NO",Fco*G9*1000,J17) -> 122562.119 | H8: R_bias | I8: =VREF*I5/(VOUT-VREF) -> 2222.222222 | J8: 2200 | K8: W | R8: TPS40040 | S8: 0.87 | T8: 0.6 | U8: 5 | V8: 55 | X8: 105 | Y8: 110 | Z8: E48 | AB8: 1.2 | AC8: 1.5 | AD8: =IF((10^(LOG(AC5)-INT(LOG(AC5))))-VLOOKUP((10^(LOG(AC5)-INT(LOG(AC5)))),AB$20:AB$25,1)<VLOOKUP((10^(LOG(AC5)-INT(LOG(AC5)))),AB$20:AC$25,2)-(10^(LOG(AC5)-INT(LOG(AC5)))),VLOOKUP((10^(LOG(AC5)-INT(LOG(AC5)))),AB$20:AB$25,1),VLOOKUP((10^(LOG(AC5)-INT(LOG(AC5)))),AB$20:AC$25,2)) -> 6.8
A9: Output Inductor | F9: kVenable | G9: =TAN(RADIANS((PM-'Input and Results'!F57-180)/2+45))+SQRT((TAN(RADIANS((PM-'Input and Results'!F57-180)/2+45)))^2+1) -> 2.45124238 | H9: C_1 | I9: =(Fp_1-Fz_1)/(2*PI()*Fp_1*Fz_1*I5)*10^12 -> 650.3981298 | J9: 680 | K9: pF | R9: TPS40041 | S9: 0.87 | T9: 0.6 | U9: 5 | V9: 55 | X9: 110 | Y9: 115 | AB9: 1.5 | AC9: 1.8
A10: LOUT | B10: 1.5 | C10: μH | H10: C_2 | I10: =((Fco*1000)/(2*PI()*I5*Fz_2*Fz_1*F58)*(1-Fz_2/Fp_2))*10^12 -> 336.1503354 | J10: 330 | K10: pF | R10: TPS40055 | S10: =VIN/((B21*10^3/(58.14*B20+1340)+3.48)/2) -> 6.896551724 | T10: 0.7 | U10: 3 | V10: 60 | X10: 115 | Y10: 120 | AB10: 1.8 | AC10: 2.2 | AD10: =IF('Input and Results'!I9<1,"1000",1) -> 1 | AE10: =IF('Input and Results'!I9<1,"pF","nF") -> nF
A11: DCR | B11: 4.5 | C11: mΩ | H11: C_3 | I11: =((Fco*1000)/(2*PI()*I5*Fz_2*Fz_1*F58)-I10*10^-12)*10^12 -> 67.11477459 | J11: 68 | K11: pF | R11: TPS40057 | S11: =VIN/((B21*10^3/(58.14*B20+1340)+3.48)/2) -> 6.896551724 | T11: 0.7 | U11: 3 | V11: 60 | X11: 120 | Y11: 121 | AB11: 2.2 | AC11: 2.7 | AD11: =IF('Input and Results'!I10<1,"1000",1) -> 1 | AE11: =IF('Input and Results'!I10<1,"pF","nF") -> nF
A12: Output Electrolytic Capacitor | D12: Qty: | F12: Standard R and C values for final circuit. | J12: Manually enter | R12: TPS40075 | S12: =(VIN-0.4)/((-((0.131*B20)+1.886)+SQRT(((0.131*B20)+1.886)^2-4*(-1.61*10^-3)*(-1.363-0.02*B20-4.87*10^-5*B20^2-B21)))/(2*(-1.61*10^-3))-0.4) -> 35.89776039 | T12: 0.7 | U12: 5 | V12: 50 | X12: 121 | Y12: 127 | AB12: 2.7 | AC12: 3.3 | AD12: =IF('Input and Results'!I11<1,"1000",1) -> 1 | AE12: =IF('Input and Results'!I11<1,"pF","nF") -> nF
A13: COUT_ELEC | B13: 330 | C13: μF | D13: 1 | F13: R_1 | G13: =I5 -> 10000 | J13: P's and Z's: | K13: No | R13: TPS40077 | S13: =(VIN-0.4)/((-((0.131*B20)+1.886)+SQRT(((0.131*B20)+1.886)^2-4*(-1.61*10^-3)*(-1.363-0.02*B20-4.87*10^-5*B20^2-B21)))/(2*(-1.61*10^-3))-0.4) -> 35.89776039 | T13: 0.7 | U13: 5 | V13: 50 | X13: 127 | Y13: 130 | AB13: 3.3 | AC13: 3.9
A14: ESR_ELEC | B14: 16 | C14: mΩ | F14: R_2 | G14: =IF(K4="No",'Input and Results'!AA3,J6) -> 2000 | H14: Fz_1 | I14: =1/(2*PI()*(R_1+R_2)*C_1*10^-12) -> 19504.28224 | K14: Hz | R14: TPS40101 | S14: 0.5 | T14: 0.696 | U14: 3.5 | V14: 60 | X14: 130 | Y14: 133 | AB14: 3.9 | AC14: 4.7
A15: Output Ceramic Capacitor | D15: Qty: | F15: R_3 | G15: =IF(K4="No",'Input and Results'!AA4,J7) -> 23700 | H15: Fz_2 | I15: =1/(2*PI()*(R_3)*C_2*10^-12) -> 20349.69225 | K15: Hz | R15: TPS40170 | S15: =VIN/15 -> 0.8 | T15: 0.6 | U15: 7 | V15: 80 | X15: 133 | Y15: 140 | AB15: 4.7 | AC15: 5.6
A16: COUT_CER | B16: 10 | C16: μF | D16: 2 | F16: R_bias | G16: =IF(K4="No",'Input and Results'!AA5,J8) -> 2200 | H16: Fp_1 | I16: =1/(2*PI()*R_2*C_1*10^-12) -> 117025.6934 | K16: Hz | R16: TPS40190 | S16: 0.75 | T16: 0.591 | U16: 5 | V16: 60 | X16: 140 | Y16: 147 | AB16: 5.6 | AC16: 6.8
A17: ESR_CER | B17: 1 | C17: mΩ | F17: C_1 | G17: =IF(K4="No",AE3,J9) -> 680 | H17: Fp_2 | I17: =(C_2*10^-12+C_3*10^-12)/(2*PI()*R_3*C_2*10^-12*C_3*10^-12) -> 119105.5517 | K17: Hz | R17: TPS40192 | S17: 1 | T17: 0.591 | U17: 7 | V17: 60 | X17: 147 | Y17: 150 | AB17: 6.8 | AC17: 8.2
A18: Select IC | B18: TPS40304 | F18: C_2 | G18: =IF(K4="No",AE4,J10) -> 330 | I18: Results | R18: TPS40193 | S18: 1 | T18: 0.591 | U18: 7 | V18: 60 | X18: 150 | Y18: 154 | AB18: 8.2 | AC18: 10
A19: =IF(A20="RT","Enter for circuit parameters:",IF(A20="fsw = ","Enter for circuit parameters:","")) ->  | F19: C_3 | G19: =IF(K4="No",AE5,J11) -> 68 | I19: FCO actual | J19: =D76 -> 49956.20596 | R19: TPS40195 | S19: 1 | T19: 0.591 | U19: 7 | V19: 60 | X19: 154 | Y19: 160 | AB19: C values greater than 10nF
A20: =IF(A21="RKFF","RT",IF(IC="TPS40400","fsw = ","")) ->  | C20: =IF(A20="RT","kΩ",IF(A20="fsw = ","kHz","")) ->  | I20: Phase at FCO | J20: =F48+F50 -> 56.37040175 | R20: TPS40200 | S20: =VIN/10 -> 1.2 | T20: 0.696 | U20: 1.5 | V20: 60 | X20: 160 | Y20: 162 | Z20: Nancy's Values | AB20: 1 | AC20: 1.5
A21: =IF(IC="TPS40055","RKFF",IF(IC="TPS40057","RKFF",IF(IC="TPS40075","RKFF",IF(IC="TPS40077","RKFF","")))) ->  | C21: =IF(A21="RKFF","kΩ","") ->  | I21: Vout (nom) | J21: =VREF/R_4*R_1+VREF -> 3.327272727 | R21: TPS40303 | S21: =VIN/6 -> 2 | T21: 0.6 | U21: 10 | V21: 60 | X21: 162 | Y21: 169 | Z21: 2000 | AB21: 1.5 | AC21: 2.2
A22: For two-phase operation, choose LOUT = Lx/2, where Lx is the inducance per phase. | R22: TPS40304 | S22: =VIN/6 -> 2 | T22: 0.6 | U22: 10 | V22: 60 | X22: 169 | Y22: 178 | Z22: 511 | AB22: 2.2 | AC22: 3.3
R23: TPS40305 | S23: =VIN/6 -> 2 | T23: 0.6 | U23: 10 | V23: 60 | X23: 178 | Y23: 180 | Z23: 750 | AB23: 3.3 | AC23: 4.7
R24: TPS40322 | S24: =VIN/8.15 -> 1.472392638 | T24: 0.6 | U24: 24 | V24: 80 | X24: 180 | Y24: 187 | Z24: 3010 | AB24: 4.7 | AC24: 6.8
R25: TPS40400 | S25: =VIN*(-3*10^-5*B20+0.1615) -> 1.938 | T25: 0.6 | U25: 15 | V25: 60 | X25: 187 | Y25: 196 | Z25: 4700 | AB25: 6.8 | AC25: 10
R26: TPS40422 | S26: =VIN/8.2 -> 1.463414634 | T26: 0.6 | U26: 24 | V26: 80 | X26: 196 | Y26: 200 | Z26: 82000
R27: TPS51113 | S27: 1.5 | T27: 0.8 | U27: 16 | V27: 89 | X27: 200 | Y27: 205 | Z27: 2.2
R28: TPS5130 | S28: =(S39-T39)*35000 -> 0.483142555 | T28: 0.85 | U28: 2.5 | V28: 50 | X28: 205 | Y28: 215
R29: TPS53311 | S29: =VIN/4 -> 3 | T29: 0.6 | U29: 14 | V29: 80 | X29: 215 | Y29: 220
R30: TPS56121 | S30: =VIN/6 -> 2 | T30: 0.6 | U30: 24 | V30: 60 | X30: 220 | Y30: 226
R31: TPS56221 | S31: =VIN/6 -> 2 | T31: 0.6 | U31: 24 | V31: 60 | X31: 226 | Y31: 237
R32: TPS53316 | S32: =VIN/4 -> 3 | T32: 0.6 | U32: 14 | V32: 80 | X32: 237 | Y32: 240
R33: TPS53313 | S33: =VIN/9 -> 1.333333333 | T33: 0.6 | U33: 14 | V33: 80 | X33: 240 | Y33: 249
X34: 249 | Y34: 261
X35: 261 | Y35: 270
X36: 270 | Y36: 274
S37: TPS5130 Ramp calculations | X37: 274 | Y37: 287
R38: dVagc | S38: I1max | T38: I1min | X38: 287 | Y38: 300
R39: =IF((VIN-8*0.65)/120>0,(VIN-8*0.65)/120,0) -> 0.05666666667 | S39: =IF((R39*2.91223+1.185)<2.37,(R39*9.67307+1.185)*10^-5,2.37*10^-5) -> 1.733140633e-05 | T39: =IF((R39*2.96+0.085)<0.37,(R39*2.96+0.185)*10^-5,3.7*10^-6) -> 3.527333333e-06 | X39: 300 | Y39: 301
X40: 301 | Y40: 316
X41: 316 | Y41: 330
X42: 330 | Y42: 332
A43: fsw = | H43: =VIN -> 12 | I43: =VRAMP -> 2 | X43: 332 | Y43: 348
A44: RT | X44: 348 | Y44: 360
A45: RKFF | X45: 360 | Y45: 365
A46: COUT_ELEC | B46: =IF(D13=0,10^-50,B13*D13) -> 330 | C46: w | F46: =2*PI()*J19 -> 313884.0993 | X46: 365 | Y46: 383
A47: ESR_ELEC | B47: =IF(D13=0,10^50,B14/D13) -> 16 | C47: GCO_FCO | F47: =20*LOG(VIN/VRAMP*IMABS(IMDIV(IMDIV(IMPRODUCT(ROUT_min,COMPLEX(1,F46*COUT*10^-6*ESR*10^-3),COMPLEX(1,F46*MLCC*10^-6*MLCC_ESR*10^-3)),IMSUM(-(ROUT_min*ESR*10^-3+ROUT_min*MLCC_ESR*10^-3+MLCC_ESR*ESR*10^-6)*COUT*MLCC*10^-12*F46^2,COMPLEX(1,F46*((ROUT_min+ESR*10^-3)*COUT*10^-6+(ROUT_min+MLCC_ESR*10^-3)*MLCC*10^-6)))),IMSUM(COMPLEX(DCR*10^-3,F46*LOUT*10^-6),IMDIV(IMPRODUCT(ROUT_min,COMPLEX(1,F46*COUT*10^-6*ESR*10^-3),COMPLEX(1,F46*MLCC*10^-6*MLCC_ESR*10^-3)),IMSUM(-(ROUT_min*ESR*10^-3+ROUT_min*MLCC_ESR*10^-3+MLCC_ESR*ESR*10^-6)*COUT*MLCC*10^-12*F46^2,COMPLEX(1,F46*((ROUT_min+ESR*10^-3)*COUT*10^-6+(ROUT_min+MLCC_ESR*10^-3)*MLCC*10^-6)))))))) -> -13.51070787 | H47: =IMDIV(IMPRODUCT(IMDIV(IMPRODUCT(IMSUM(IMDIV(1,COMPLEX(0,F46*COUT*10^-6)),ESR*10^-3),IMSUM(IMDIV(1,COMPLEX(0,F46*MLCC*10^-6)),MLCC_ESR*10^-3)),IMSUM(IMSUM(IMDIV(1,COMPLEX(0,F46*COUT*10^-6)),ESR*10^-3),IMSUM(IMDIV(1,COMPLEX(0,F46*MLCC*10^-6)),MLCC_ESR*10^-3))),VOUT/IOUT_max),IMSUM(IMDIV(IMPRODUCT(IMSUM(IMDIV(1,COMPLEX(0,F46*COUT*10^-6)),ESR*10^-3),IMSUM(IMDIV(1,COMPLEX(0,F46*MLCC*10^-6)),MLCC_ESR*10^-3)),IMSUM(IMSUM(IMDIV(1,COMPLEX(0,F46*COUT*10^-6)),ESR*10^-3),IMSUM(IMDIV(1,COMPLEX(0,F46*MLCC*10^-6)),MLCC_ESR*10^-3))),VOUT/IOUT_max)) -> 0.0135631144019085-0.00897036177111861i | X47: 383 | Y47: 390
C48: PHCO_FCO | F48: =180/PI()*IMARGUMENT(IMDIV(IMDIV(IMPRODUCT(ROUT_min,COMPLEX(1,F46*COUT*10^-6*ESR*10^-3),COMPLEX(1,F46*MLCC*10^-6*MLCC_ESR*10^-3)),IMSUM(-(ROUT_min*ESR*10^-3+ROUT_min*MLCC_ESR*10^-3+MLCC_ESR*ESR*10^-6)*COUT*MLCC*10^-12*F46^2,COMPLEX(1,F46*((ROUT_min+ESR*10^-3)*COUT*10^-6+(ROUT_min+MLCC_ESR*10^-3)*MLCC*10^-6)))),IMSUM(COMPLEX(DCR*10^-3,F46*LOUT*10^-6),IMDIV(IMPRODUCT(ROUT_min,COMPLEX(1,F46*COUT*10^-6*ESR*10^-3),COMPLEX(1,F46*MLCC*10^-6*MLCC_ESR*10^-3)),IMSUM(-(ROUT_min*ESR*10^-3+ROUT_min*MLCC_ESR*10^-3+MLCC_ESR*ESR*10^-6)*COUT*MLCC*10^-12*F46^2,COMPLEX(1,F46*((ROUT_min+ESR*10^-3)*COUT*10^-6+(ROUT_min+MLCC_ESR*10^-3)*MLCC*10^-6))))))) -> -121.2401328 | H48: =20*LOG(VIN/VRAMP*IMABS(IMDIV(H47,IMSUM(COMPLEX(DCR*10^-3,F46*LOUT*10^-6),H47)))) -> -13.51070787 | X48: 390 | Y48: 402
A49: COUT_CER | B49: =IF(D16=0,10^-50,B16*D16) -> 20 | C49: EA_Gain dB | F49: =20*LOG(IMABS(I49)) -> 13.51048858 | G49: =IMDIV(IMPRODUCT(IMDIV(1,COMPLEX(0,F46*C_3*10^-12)),IMSUM(R_3,IMDIV(1,COMPLEX(0,F46*C_2*10^-12)))),IMSUM(IMDIV(1,COMPLEX(0,F46*C_3*10^-12)),IMSUM(R_3,IMDIV(1,COMPLEX(0,F46*C_2*10^-12))))) -> 13855.8238774762-13816.2678402959i | H49: =IMDIV(IMPRODUCT(IMSUM(R_2,IMDIV(1,COMPLEX(0,F46*C_1*10^-12))),R_1),IMSUM(IMSUM(R_2,IMDIV(1,COMPLEX(0,F46*C_1*10^-12))),R_1)) -> 2768.92615856585-2823.21089866568i | I49: =IMDIV(IMPRODUCT(-1,IMDIV(10^(DCGAIN/20),IMPRODUCT(COMPLEX(1,F46/(2*PI()*(GBWP*10^6/10^(DCGAIN/20)))),COMPLEX(1,F46/(2*PI()*EAP*10^6))))),IMSUM(1,IMDIV(H49,R_4),IMPRODUCT(IMDIV(H49,G49),IMSUM(1,IMDIV(10^(DCGAIN/20),IMPRODUCT(COMPLEX(1,F46/(2*PI()*(GBWP*10^6/10^(DCGAIN/20)))),COMPLEX(1,F46/(2*PI()*EAP*10^6)))))))) -> -4.73311057877826+0.197504344989501i | X49: 402 | Y49: 422
A50: ESR_CER | B50: =IF(D16=0,10^50,B17/D16) -> 0.5 | C50: EA_Phase | F50: =IF(180/PI()*IMARGUMENT(I49)<0,180/PI()*IMARGUMENT(I49)+360,180/PI()*IMARGUMENT(I49)) -> 177.6105346 | X50: 422 | Y50: 430
A51: Error Amp pole | B51: 10 | C51: GBWP limit | F51: =IF(20*(LOG(GBWP*10^6)-LOG(J19))>DCGAIN,DCGAIN,20*(LOG(GBWP*10^6)-LOG(J19))) -> 46.02821105 | X51: 430 | Y51: 442
C52: No | X52: 442 | Y52: 464
C53: Yes | X53: 464 | Y53: 470
C54: ROUT_min | F54: =B5/B6 -> 0.1833333333 | G54: Ohms | X54: 470 | Y54: 487
C55: wCO | F55: =2*PI()*Fco*1000 -> 314159.2654 | X55: 487 | Y55: 510
C56: GCO_FCO | F56: =(IMABS(F61)*$F$62) -> 0.2108472828 | X56: 510 | Y56: 511
C57: PHCO_FCO | F57: =180/PI()*IMARGUMENT(F61) -> -121.2267297 | X57: 511 | Y57: 536
C58: GCOMP_FCO | F58: =1/F56 -> 4.742769206 | X58: 536 | Y58: 560
C59: Z2(s) | F59: =IMDIV(IMPRODUCT(IMDIV(IMPRODUCT(IMSUM(IMDIV(1,COMPLEX(0,wCO*COUT*10^-6)),ESR*10^-3),IMSUM(IMDIV(1,COMPLEX(0,wCO*MLCC*10^-6)),MLCC_ESR*10^-3)),IMSUM(IMSUM(IMDIV(1,COMPLEX(0,wCO*COUT*10^-6)),ESR*10^-3),IMSUM(IMDIV(1,COMPLEX(0,wCO*MLCC*10^-6)),MLCC_ESR*10^-3))),VOUT/IOUT_max),IMSUM(IMDIV(IMPRODUCT(IMSUM(IMDIV(1,COMPLEX(0,wCO*COUT*10^-6)),ESR*10^-3),IMSUM(IMDIV(1,COMPLEX(0,wCO*MLCC*10^-6)),MLCC_ESR*10^-3)),IMSUM(IMSUM(IMDIV(1,COMPLEX(0,wCO*COUT*10^-6)),ESR*10^-3),IMSUM(IMDIV(1,COMPLEX(0,wCO*MLCC*10^-6)),MLCC_ESR*10^-3))),VOUT/IOUT_max)) -> 0.0135623028420346-0.00896454213746152i | X59: 560 | Y59: 562
C60: Z1(s) | F60: =COMPLEX(DCR*10^-3,wCO*LOUT*10^-6) -> 0.0045+0.471238898038469i | X60: 562 | Y60: 590
C61: X_LC | F61: =IMDIV(F59,IMSUM(F60,F59)) -> -0.0182181188782159-0.0300500424587684i | X61: 590 | Y61: 619
C62: VIN/VRMP | F62: =VIN/VRAMP -> 6 | X62: 619 | Y62: 620
X63: 620 | Y63: 649
X64: 649 | Y64: 680
B65: Override IC Parameters | C65: No | X65: 680 | Y65: 681
A66: VRAMP | B66: =IF(C65="NO",VLOOKUP(IC,R5:V33,2,FALSE),C66) -> 2 | C66: 1.5 | D66: V | X66: 681 | Y66: 715
A67: VREF | B67: =IF(C65="NO",VLOOKUP(IC,R5:V33,3),C67) -> 0.6 | C67: 0.7 | D67: V | X67: 715 | Y67: 750
A68: GBWP | B68: =IF(C65="NO",VLOOKUP(IC,R5:V33,4),C68) -> 10 | C68: 5 | D68: Mhz | X68: 750 | Y68: 787
A69: DC Gain | B69: =IF(C65="NO",VLOOKUP(IC,R5:V33,5),C69) -> 60 | C69: 50 | D69: dB | X69: 787 | Y69: 820
X70: 820 | Y70: 825
X71: 825 | Y71: 866
X72: 866 | Y72: 909
D73: =MIN(A80:A330) -> 0.026 | G73: Phase | X73: 909 | Y73: 910
D74: =VLOOKUP(MIN(A80:A330),A80:E330,3,FALSE) -> 50118.72336 | F74: =VLOOKUP(D73,A80:E330,4,FALSE) -> -0.02582251306 | G74: =VLOOKUP(D73,A80:E330,5,FALSE) -> 56.40300664 | I74: =F74-F75 -> -0.3661332946 | X74: 910 | Y74: 953
D75: =IF(F74>0,10^(LOG(D74)+0.02),10^(LOG(D74)-0.02)) -> 47863.00923 | F75: =VLOOKUP(D75,C80:E330,2) -> 0.3403107815 | G75: =VLOOKUP(D75,C80:E330,3) -> 55.87143078 | I75: =F74/((F74-F75)/0.02) -> 0.001410552575 | J75: =(G75-G74)/0.02*I75 -> -0.03749078527 | X75: 953 | Y75: 1000
C76: FCO | D76: =IF(F74>0,10^(LOG(D74)+I75),10^(LOG(D74)-I75)) -> 49956.20596 | G76: =G74+J75 -> 56.36551586
D77: OVERALL SYSTEM | H77: FILTER | S77: PWM GAIN and FILTER | U77: ERROR AMPLIFIER
D78: SYS_Gain (f) dB | E78: SYS_Phase (f) | T78: Numerator 1 | U78: EA_Gain(f) dB | V78: EA_Phase f) | W78: GBWP limit | X78: GBWP Phase | Y78: Xea_ol(f) | Z78: X1(f)
C79: f | H79: ZC1(s) | I79: ZC2(s) | J79: ZC(s) | L79: Z2(s) | M79: Z1(s) | N79: X_LC | O79: GFILT_DBMAG(f) | P79: GFILT_PH(f) | Q79: w | S79: GCO_DBMAG(f)
A80: =ROUND(ABS(D80),3) -> 60.464 | B80: =LOG(C80) -> 1 | C80: 10 | D80: =S80+U80 -> 60.46424883 | E80: =P80+V80 -> 177.3440398 | H80: =IMSUM(IMDIV(1,COMPLEX(0,Q80*COUT*10^-6)),ESR*10^-3) -> 0.016-48.2287706339078i | I80: =IMSUM(IMDIV(1,COMPLEX(0,Q80*MLCC*10^-6)),MLCC_ESR*10^-3) -> 0.0005-795.774715459475i | J80: =IMDIV(IMPRODUCT(H80,I80),IMSUM(H80,I80)) -> 0.0142253061171976-45.4728411520204i | L80: =IMDIV(IMPRODUCT(J80,VOUT/IOUT_max),IMSUM(J80,VOUT/IOUT_max)) -> 0.183330122139514-0.000739132982688853i | M80: =COMPLEX(DCR*10^-3,Q80*LOUT*10^-6) -> 0.0045+0.0000942477796076938i | N80: =IMDIV(L80,IMSUM(M80,L80)) -> 0.976044186507712-0.00058401990057358i | O80: =20*LOG(IMABS(N80)) -> -0.2106088639 | P80: =180/PI()*IMARGUMENT(N80) -> -0.03428315226 | Q80: =2*PI()*C80 -> 62.83185307 | R80: 1 | S80: =20*LOG(IMABS(N80)*$F$62) -> 15.35241614 | T80: =COMPLEX(1,Q80*(R_1+R_2)*C_1*10^-12) -> 1+0.000512707921065854i | U80: =20*LOG(IMABS(AE89)) -> 45.11183268 | V80: =IF(180/PI()*IMARGUMENT(AE89)<0,180/PI()*IMARGUMENT(AE89)+360,180/PI()*IMARGUMENT(AE89)) -> 177.378323 | W80: =20*LOG(IMABS(Y80)) -> 59.99999566 | X80: =180/PI()*IMARGUMENT(Y80) -> -0.05735305619 | Y80: =IMDIV(10^(DCGAIN/20),IMPRODUCT(COMPLEX(1,2*PI()*C80/(2*PI()*(GBWP*10^6/10^(DCGAIN/20)))),COMPLEX(1,2*PI()*C80/(2*PI()*EAP*10^6)))) -> 999.998999000001-1.000998999i | Z80: =IMDIV(1,COMPLEX(0,2*PI()*C80*C_3*10^-12)) -> -234051386.899846i
A81: 60.463 | B81: =LOG(C81) -> 1.02 | C81: =10^R81 -> 10.47128548 | D81: 60.46334219 | E81: 177.2190632 | H81: 0.016-46.0581183883102i | I81: 0.0005-759.958953407119i | J81: 0.0142253061166909-43.4262261902595i | L81: 0.183329812335743-0.000773965837150188i | M81: 0.0045+0.0000986895406176256i | N81: 0.976044340444402-0.000611544185957038i | O81: -0.210607344 | P81: -0.03589887754 | Q81: 65.79302708 | R81: =R80+0.02 -> 1.02 | S81: 15.35241766 | T81: 1+0.000536871100959883i | U81: 45.11092452 | V81: 177.254962 | W81: 59.99999524 | X81: -0.06005602053 | Y81: 999.998902425432-1.04817452729729i | Z81: -223517339.237388i
A82: 60.462 | B82: 1.04 | C82: 10.96478196 | D82: 60.46234829 | E82: 177.0882253 | H82: 0.016-43.9851615869338i | I82: 0.0005-725.755166184406i | J82: 0.0142253061161354-41.4717240765039i | L82: 0.18332947264396-0.000810440104601619i | M82: 0.0045+0.000103340635374745i | N82: 0.976044509232646-0.000640365691753848i | O82: -0.2106056774 | P82: -0.03759075111 | Q82: 68.89375692 | R82: 1.04 | S82: 15.35241933 | T82: 1+0.000562173056438611i | U82: 45.10992896 | V82: 177.1258161 | W82: 59.99999478 | X82: -0.06288637136 | Y82: 999.998796533545-1.0975733547646i | Z82: -213457401.818944i
A83: 60.461 | B83: 1.06 | C83: 11.48153621 | D83: 60.46125877 | E83: 176.9512544 | H83: 0.016-42.0055032104766i | I83: 0.0005-693.090802972864i | J83: 0.0142253061155262-39.6051890497253i | L83: 0.183329100180887-0.000848633111511596i | M83: 0.0045+0.000108210929474614i | N83: 0.976044694305302-0.000670545560124349i | O83: -0.2106038501 | P83: -0.03936236194 | Q83: 72.14061965 | R83: 1.06 | S83: 15.35242116 | T83: 1+0.000588667456341899i | U83: 45.10883762 | V83: 176.9906167 | W83: 59.99999427 | X83: -0.06585011219 | Y83: 999.998680425426-1.14930026004405i | Z83: -203850236.168489i
A84: 60.46 | B84: 1.08 | C84: 12.02264435 | D84: 60.46006446 | E84: 176.8078661 | H84: 0.016-40.1149441381048i | I84: 0.0005-661.896578278729i | J84: 0.0142253061148583-37.8226619388815i | L84: 0.183328691785124-0.000888625824048914i | M84: 0.0045+0.000113310753463991i | N84: 0.976044897233464-0.000702147815665841i | O84: -0.2106018464 | P84: -0.04121746818 | Q84: 75.54050231 | R84: 1.08 | S84: 15.35242316 | T84: 1+0.000616410498844109i | U84: 45.10764129 | V84: 176.8490836 | W84: 59.99999372 | X84: -0.06895352945 | Y84: 999.998553115436-1.20346495951418i | Z84: -194675464.199626i
A85: 60.459 | B85: 1.1 | C85: 12.58925412 | D85: 60.45875529 | E85: 176.6577638 | H85: 0.016-38.3094742405542i | I85: 0.0005-632.106324969141i | J85: 0.0142253061141259-36.1203617649828i | L85: 0.18332824399033-0.000930503018937514i | M85: 0.0045+0.000118650924753302i | N85: 0.976045119739805-0.000735239501390341i | O85: -0.2105996495 | P85: -0.04316000515 | Q85: 79.1006165 | R85: 1.1 | S85: 15.35242536 | T85: 1+0.000645461030657962i | U85: 45.10632993 | V85: 176.7009238 | W85: 59.99999312 | X85: -0.07220320582 | Y85: 999.998413522844-1.26018233994955i | Z85: -185913624.990924i
A86: 60.457 | B86: 1.12 | C86: 13.18256739 | D86: 60.45732027 | E86: 176.5006372 | H86: 0.016-36.5852638741084i | I86: 0.0005-603.656853922788i | J86: 0.014225306113323-34.4946777211287i | L86: 0.183327752995813-0.000974353462262848i | M86: 0.0045+0.000124242770561822i | N86: 0.9760453637132-0.00076989082113048i | O86: -0.2105972406 | P86: -0.04519409366 | Q86: 82.82851371 | R86: 1.12 | S86: 15.35242777 | T86: 1+0.000675880671856309i | U86: 45.10489251 | V86: 176.5458313 | W86: 59.99999245 | X86: -0.07560603423 | Y86: 999.998260462656-1.31957270213814i | Z86: -177546133.506702i
A87: 60.456 | B87: 1.14 | C87: 13.80384265 | D87: 60.45574736 | E87: 176.3361629 | H87: 0.016-34.9386557574113i | I87: 0.0005-576.487819997288i | J87: 0.0142253061124425-32.942161513503i | L87: 0.18332721463429-0.00102027009658963i | M87: 0.0045+0.000130098151944221i | N87: 0.976045631224762-0.000806175288679302i | O87: -0.2105945993 | P87: -0.0473240488 | Q87: 86.7321013 | R87: 1.14 | S87: 15.35243041 | T87: 1+0.000707733946576563i | U87: 45.10331695 | V87: 176.383487 | W87: 59.99999172 | X87: -0.07916923243 | Y87: 999.998092635551-1.38176201597162i | Z87: -169555241.175673i | AA87: X2(f) | AB87: X3(f) | AC87: Zf(f) | AD87: Zi(f) | AE87: Xea_cl(f)
A88: 60.454 | B88: 1.16 | C88: 14.45439771 | D88: 60.45402334 | E88: 176.1640029 | H88: 0.016-33.366157213883i | I88: 0.0005-550.54159402907i | J88: 0.0142253061114771-31.4595200470803i | L88: 0.183326624336536-0.00106835023676564i | M88: 0.0045+0.000136229488949458i | N88: 0.97604592454542-0.00084416988398478i | O88: -0.2105917032 | P88: -0.04955438906 | Q88: 90.8196593 | R88: 1.16 | S88: 15.3524333 | T88: 1+0.00074108841988505i | U88: 45.10159004 | V88: 176.2135573 | W88: 59.99999093 | X88: -0.08290035833 | Y88: 999.997908616853-1.4468821875483i | Z88: -161923998.243844i
A89: 60.452 | B89: 1.18 | C89: 15.13561248 | D89: 60.45213379 | E89: 175.9838047 | H89: 0.016-31.8644327632839i | I89: 0.0005-525.763140594184i | J89: 0.0142253061104186-30.0436084405287i | L89: 0.183325977092632-0.00111869577480139i | M89: 0.0045+0.000142649786965362i | N89: 0.976046246165202-0.000883955216735254i | O89: -0.2105885276 | P89: -0.05188984595 | Q89: 95.09985798 | R89: 1.18 | S89: 15.35243648 | T89: 1+0.000776014841091568i | U89: 45.09969731 | V89: 176.0356946 | W89: 59.99999005 | X89: -0.08680732602 | Y89: 999.997706844442-1.51507133885326i | Z89: -154636217.821819i | AA89: =IMSUM(R_3,IMDIV(1,COMPLEX(0,2*PI()*C80*C_2*10^-12))) -> 23700-48228770.6339078i | AB89: =IMSUM(R_2,IMDIV(1,COMPLEX(0,2*PI()*C80*C_1*10^-12))) -> 2000-23405138.6899846i | AC89: =IMDIV(IMPRODUCT(Z80,AA89),IMSUM(Z80,AA89)) -> 16293.3384372028-39988680.5367928i | AD89: =IMDIV(IMPRODUCT(AB89,R_1),IMSUM(AB89,R_1)) -> 9999.99780942214-4.2725648857555i | AE89: =IMDIV(IMPRODUCT(-1,Y80),IMSUM(1,IMDIV(AD89,R_4),IMPRODUCT(IMDIV(AD89,AC89),IMSUM(1,Y80)))) -> -179.943778507047+8.23941986219911i
A90: 60.45 | B90: 1.2 | C90: 15.84893192 | D90: 60.45006288 | E90: 175.7952007 | H90: 0.016-30.4302970467147i | I90: 0.0005-502.099901270794i | J90: 0.0142253061092579-28.6914233554961i | L90: 0.183325267409467-0.00117141339423051i | M90: 0.0045+0.000149372664304809i | N90: 0.976046598814373-0.000925615697688653i | O90: -0.2105850457 | P90: -0.05433537404 | Q90: 99.5817762 | R90: 1.2 | S90: 15.35243996 | T90: 1+0.000812587293818163i | U90: 45.09762292 | V90: 175.849536 | W90: 59.99998909 | X90: -0.09089842257 | Y90: 999.997485605486-1.58647410060682i | Z90: -147676441.550233i | AA90: 23700-46058118.3883102i | AB90: 2000-22351733.9237388i | AC90: 16293.3384261219-38188893.5634564i | AD90: 9999.9975980792-4.47392455181049i | AE90: -179.906810240712+8.62592729939267i
A91: 60.448 | B91: 1.22 | C91: 16.59586907 | D91: 60.44779332 | E91: 175.5978072 | H91: 0.016-29.0607080700425i | I91: 0.0005-479.501683155702i | J91: 0.0142253061079852-27.4000966261267i | L91: 0.183324489264161-0.00122661479437233i | M91: 0.0045+0.000156412381091989i | N91: 0.976046985486609-0.000969239718115375i | O91: -0.2105812279 | P91: -0.05689616151 | Q91: 104.2749207 | R91: 1.22 | S91: 15.35244378 | T91: 1+0.000850883353140423i | U91: 45.09534954 | V91: 175.6547034 | W91: 59.99998804 | X91: -0.09518232556 | Y91: 999.997243021907-1.66124191890025i | Z91: -141029906.810501i | AA91: 23700-43985161.5869338i | AB91: 2000-21345740.1818944i | AC91: 16293.3384139719-36470110.3534423i | AD91: 9999.99736634629-4.68477398975258i | AE91: -179.866293111222+9.03038384214213i
A92: 60.445 | B92: 1.24 | C92: 17.37800829 | D92: 60.44530616 | E92: 175.3912248 | H92: 0.016-27.752760751424i | I92: 0.0005-457.920552398495i | J92: 0.0142253061065898-26.1668891752962i | L92: 0.183323636052986-0.00128441692493311i | M92: 0.0045+0.000163783869510039i | N92: 0.976047409464419-0.00101491983774316i | O92: -0.2105770417 | P92: -0.05957764113 | Q92: 109.1892463 | R92: 1.24 | S92: 15.35244797 | T92: 1+0.000890984250134611i | U92: 45.09285819 | V92: 175.4508024 | W92: 59.99998688 | X92: -0.09966812154 | Y92: 999.996977034437-1.73953337626607i | Z92: -134682515.411322i | AA92: 23700-42005503.2104767i | AB92: 2000-20385023.6168489i | AC92: 16293.3384006497-34828685.1371207i | AD92: 9999.99711225622-4.90556043626171i | AE92: -179.821888309867+9.45359616770433i
A93: 60.443 | B93: 1.26 | C93: 18.19700859 | D93: 60.44258068 | E93: 175.1750371 | H93: 0.016-26.5036807592365i | I93: 0.0005-437.310732527402i | J93: 0.0142253061050597-24.9891852046624i | L93: 0.183322700535377-0.00134494223139948i | M93: 0.0045+0.000171502765474205i | N93: 0.976047874347002-0.00106275298161115i | O93: -0.2105724517 | P93: -0.06238550183 | Q93: 114.335177 | R93: 1.26 | S93: 15.35245256 | T93: 1+0.000932975044179675i | U93: 45.09012813 | V93: 175.2374226 | W93: 59.99998562 | X93: -0.1043653253 | Y93: 999.996685385138-1.82151452786107i | Z93: -128620803.68453i | AA93: 23700-40114944.1381048i | AB93: 2000-19467546.4199626i | AC93: 16293.3383860422-33261136.2315381i | AD93: 9999.99683365201-5.1367522052641i | AE93: -179.773225059559+9.89640321799155i
A94: 60.44 | B94: 1.28 | C94: 19.05460718 | D94: 60.43959423 | E94: 174.9488105 | H94: 0.016-25.3108186273499i | I94: 0.0005-417.628507351273i | J94: 0.014225306103382-23.8644866462063i | L94: 0.183321674772552-0.00140831891169333i | M94: 0.0045+0.000179585441797718i | N94: 0.97604838408081-0.00111284064626102i | O94: -0.2105674188 | P94: -0.06532570077 | Q94: 119.7236279 | R94: 1.28 | S94: 15.35245759 | T94: 1+0.000976944803379587i | U94: 45.08713664 | V94: 175.0141362 | W94: 59.99998423 | X94: -0.1092838999 | Y94: 999.996365598237-1.90735925347141i | Z94: -122831913.926845i | AA94: 23700-38309474.2405542i | AB94: 2000-18591362.4990924i | AC94: 16293.3383700255-31764138.655301i | AD94: 9999.9965281686-5.37883968121782i | AE94: -179.719897674588+10.3596768833699i
A95: 60.436 | B95: 1.3 | C95: 19.95262315 | D95: 60.43632202 | E95: 174.7120939 | H95: 0.016-24.1716441352524i | I95: 0.0005-398.832128231665i | J95: 0.0142253061015425-22.7904078634942i | L95: 0.183320550060205-0.00147468118457409i | M95: 0.0045+0.000188049042920724i | N95: 0.976048942993046-0.00116528911571328i | O95: -0.2105619003 | P95: -0.06840447603 | Q95: 125.3660286 | R95: 1.3 | S95: 15.35246311 | T95: 1+0.00102298679348874i | U95: 45.08385891 | V95: 174.7804984 | W95: 59.99998271 | X95: -0.1144342781 | Y95: 999.996014959107-1.99724962608193i | Z95: -117303567.12696i | AA95: 23700-36585263.8741084i | AB95: 2000-17754613.3506702i | AC95: 16293.3383524634-30334517.0758439i | AD95: 9999.99619321272-5.63233635920198i | AE95: -179.661462365367+10.8443225986887i
A96: 60.433 | B96: 1.32 | C96: 20.89296131 | D96: 60.43273696 | E96: 174.4644181 | H96: 0.016-23.0837409411146i | I96: 0.0005-380.881725528391i | J96: 0.0142253060995255-21.7646705914238i | L96: 0.183319316854744-0.00154416957029041i | M96: 0.0045+0.000196911521275939i | N96: 0.976049555828404-0.00122020968770127i | O96: -0.2105558494 | P96: -0.07162835984 | Q96: 131.2743475 | R96: 1.32 | S96: 15.35246916 | T96: 1+0.00107119867574111i | U96: 45.0802678 | V96: 174.5360465 | W96: 59.99998104 | X96: -0.1198273841 | Y96: 999.995630491227-2.09137629778711i | Z96: -112024036.920115i | AA96: 23700-34938655.7574113i | AB96: 2000-16955524.1175673i | AC96: 16293.338333207-28969239.0741241i | AD96: 9999.99582594093-5.89777993401473i | AE96: -179.597433769219+11.3512798306364i
A97: 60.429 | B97: 1.34 | C97: 21.87761624 | D97: 60.42880942 | E97: 174.2052953 | H97: 0.016-22.0448014564039i | I97: 0.0005-363.739224030664i | J97: 0.0142253060973139-20.785099103718i | L97: 0.183317964692406-0.0016169311839994i | M97: 0.0045+0.000206191675368168i | N97: 0.976050227789346-0.00127771891065627i | O97: -0.2105492148 | P97: -0.07500419249 | Q97: 137.4611169 | R97: 1.34 | S97: 15.35247579 | T97: 1+0.00112168271400283i | U97: 45.07633363 | V97: 174.2802995 | W97: 59.99997921 | X97: -0.1254746572 | Y97: 999.995208930921-2.18993890385643i | Z97: -106982124.714901i | AA97: 23700-33366157.213883i | AB97: 2000-16192399.8243844i | AC97: 16293.3383120928-27665408.7124542i | AD97: 9999.99542323546-6.17573344058822i | AE97: -179.527281187515+11.8815224323133i
A98: 60.425 | B98: 1.36 | C98: 22.90867653 | D98: 60.42450706 | E98: 173.9342191 | H98: 0.016-21.0526219511802i | I98: 0.0005-347.368262194475i | J98: 0.0142253060948889-19.8496155979178i | L98: 0.183316482100606-0.00169312004248718i | M98: 0.0045+0.000215909189648452i | N98: 0.976050964580267-0.0013379388319652i | O98: -0.21054194 | P98: -0.07853913688 | Q98: 143.9394598 | R98: 1.36 | S98: 15.35248307 | T98: 1+0.00117454599168758i | U98: 45.07202399 | V98: 174.0127582 | W98: 59.99997721 | X98: -0.1313880754 | Y98: 999.994746699645-2.29314648580469i | Z98: -102167135.939551i | AA98: 23700-31864432.7632839i | AB98: 2000-15463621.7821819i | AC98: 16293.3382889415-26420260.3918293i | AD98: 9999.99498167774-6.46678644813719i | AE98: -179.450424508888+12.4360588372755i
A99: 60.42 | B99: 1.38 | C99: 23.98832919 | D99: 60.41979452 | E99: 173.6506638 | H99: 0.016-20.1050978796893i | I99: 0.0005-331.734115014873i | J99: 0.0142253060922299-18.9562357880854i | L99: 0.183314856500744-0.0017728973847396i | M99: 0.0045+0.00022608467626743i | N99: 0.97605177245593-0.00140099725804672i | O99: -0.2105339634 | P99: -0.08224069371 | Q99: 150.7231175 | R99: 1.38 | S99: 15.35249104 | T99: 1+0.00122990063889482i | U99: 45.06730348 | V99: 173.7329045 | W99: 59.99997501 | X99: -0.1375801814 | Y99: 999.994239873619-2.40121793435771i | Z99: -97568857.3573153i | AA99: 23700-30430297.0467147i | AB99: 2000-14767644.1550233i | AC99: 16293.3382635566-25231152.9857215i | AD99: 9999.99449751938-6.77155631057219i | AE99: -179.366229797832+13.015932061216i
A100: 60.415 | B100: 1.4 | C100: 25.11886432 | D100: 60.41463323 | E100: 173.3540845 | H100: 0.016-19.2002194163385i | I100: 0.0005-316.803620369586i | J100: 0.0142253060893145-18.1030646958661i | L100: 0.183313074101671-0.00185643200692657i | M100: 0.0045+0.000236739718796472i | N100: 0.976052658274558-0.00146702802682006i | O100: -0.2105252172 | P100: -0.08611671753 | Q100: 157.8264792 | R100: 1.4 | S100: 15.35249979 | T100: 1+0.00128786407025281i | U100: 45.06213344 | V100: 173.4402012 | W100: 59.9999726 | X100: -0.1440641089 | Y100: 999.993684150522-2.51438245324447i | Z100: -93177535.4028199i | AA100: 23700-29060708.0700425i | AB100: 2000-14102990.6810501i | AC100: 16293.3382357226-24095564.2378961i | AD100: 9999.99396665036-7.09068947582673i | AE100: -179.274004527859+13.6222194748559i
A101: 60.409 | B101: 1.42 | C101: 26.30267992 | D101: 60.40898104 | E101: 173.0439166 | H101: 0.016-18.3360671925881i | I101: 0.0005-302.545108677704i | J101: 0.0142253060861177-17.288292630987i | L101: 0.183311119782907-0.00194390061237606i | M101: 0.0045+0.000247896918009328i | N101: 0.976053629556066-0.00153617129317161i | O101: -0.2105156272 | P101: -0.09017543337 | Q101: 165.264612 | R101: 1.42 | S101: 15.35250938 | T101: 1+0.00134855923397074i | U101: 45.05647166 | V101: 173.1340921 | W101: 59.99996995 | X101: -0.1508536106 | Y101: 999.993074812974-2.6328800447895i | Z101: -88983855.4934429i | AA101: 23700-27752760.751424i | AB101: 2000-13468251.5411322i | AC101: 16293.3382052033-23011085.4123679i | AD101: 9999.99338456414-7.4248628568726i | AE101: -179.172992438506+14.2560323064661i
A102: 60.403 | B102: 1.44 | C102: 27.54228703 | D102: 60.40279202 | E102: 172.7195764 | H102: 0.016-17.5108082257126i | I102: 0.0005-288.928335724258i | J102: 0.0142253060826125-16.51019135266i | L102: 0.183308976966636-0.00203548817712709i | M102: 0.0045+0.0002595799398214i | N102: 0.976054694545898-0.00160857382805407i | O102: -0.2105051119 | P102: -0.09442545429 | Q102: 173.0532932 | R102: 1.44 | S102: 15.3525199 | T102: 1+0.00141211487262842i | U102: 45.05027213 | V102: 172.8140018 | W102: 59.99996706 | X102: -0.1579630872 | Y102: 999.99240668849-2.75696201832498i | Z102: -84978922.2718407i | AA102: 23700-26503680.7592366i | AB102: 2000-12862080.368453i | AC102: 16293.3381717394-21975416.1841491i | AD102: 9999.99274631937-7.77478526732764i | AE102: -179.06236799613+14.918514826698i
A103: 60.396 | B103: 1.46 | C103: 28.84031503 | D103: 60.39601606 | E103: 172.3804603 | H103: 0.016-16.7226920307987i | I103: 0.0005-275.924418508178i | J103: 0.0142253060787692-15.7671104037518i | L103: 0.183306627477404-0.00213138833165987i | M103: 0.0045+0.000271813565488322i | N103: 0.976055862285035-0.00168438933188801i | O103: -0.2104935822 | P103: -0.09887579974 | Q103: 181.2090437 | R103: 1.46 | S103: 15.35253143 | T103: 1+0.00147866579625647i | U103: 45.04348464 | V103: 172.4793361 | W103: 59.99996388 | X103: -0.1654076178 | Y103: 999.991674105586-2.88689152248793i | Z103: -81154240.7376992i | AA103: 23700-25310818.6273499i | AB103: 2000-12283191.3926845i | AC103: 16293.3381350472-20986359.7599524i | AD103: 9999.99204649802-8.14119892469746i | AE103: -178.941230439478+15.6108431620132i
A104: 60.389 | B104: 1.48 | C104: 30.1995172 | D104: 60.38859854 | E104: 172.0259457 | H104: 0.016-15.9700469077325i | I104: 0.0005-263.505773977586i | J104: 0.014225306074555-15.0574736099434i | L104: 0.18330405138833-0.00223180375941056i | M104: 0.0045+0.000284623744170325i | N104: 0.976057142686748-0.00176377876296984i | O104: -0.21048094 | P104: -0.1035359147 | Q104: 189.7491628 | R104: 1.48 | S104: 15.35254407 | T104: 1+0.00154835316828657i | U104: 45.03605448 | V104: 172.1294816 | W104: 59.99996039 | X104: -0.1732029924 | Y104: 999.990870845636-3.02294410251696i | Z104: -77501698.2287021i | AA104: 23700-24171644.1352524i | AB104: 2000-11730356.712696i | AC104: 16293.3380948148-20041818.2184968i | AD104: 9999.9912791593-8.52488102443464i | AE104: -178.808597392809+16.3342236759342i
A105: 60.38 | B105: 1.5 | C105: 31.6227766 | D105: 60.38047999 | E105: 171.655391 | H105: 0.016-15.2512763952991i | I105: 0.0005-251.646060522435i | J105: 0.0142253060699343-14.3797757364523i | L105: 0.183301226852563-0.00233694661268375i | M105: 0.0045+0.000298037647973883i | N105: 0.976058546620763-0.00184691068162879i | O105: -0.2104670782 | P105: -0.1084156901 | Q105: 198.6917653 | R105: 1.5 | S105: 15.35255793 | T105: 1+0.00162132480497793i | U105: 45.02792206 | V105: 171.7638067 | W105: 59.99995657 | X105: -0.1813657448 | Y105: 999.989990090099-3.16540828371406i | Z105: -74013547.2124809i | AA105: 23700-23083740.9411146i | AB105: 2000-11202403.6920115i | AC105: 16293.3380507009-19139788.0605359i | AD105: 9999.99043778928-8.92664538814843i | AE105: -178.663398031891+17.0898908495571i
A106: 60.372 | B106: 1.52 | C106: 33.11311215 | D106: 60.37159564 | E106: 171.2681364 | H106: 0.016-14.5648558848743i | I106: 0.0005-240.320122100427i | J106: 0.0142253060648678-13.7325792952283i | L106: 0.18329812991856-0.00244703894657741i | M106: 0.0045+0.000312083729587398i | N106: 0.976060086005548-0.00193396161091513i | O106: -0.210451879 | P106: -0.1135254833 | Q106: 208.0558197 | R106: 1.52 | S106: 15.35257313 | T106: 1+0.00169773548895544i | U106: 45.01902252 | V106: 171.3816619 | W106: 59.99995238 | X106: -0.189913188 | Y106: 999.989024362637-3.31458618228962i | Z106: -70682388.8530665i | AA106: 23700-22044801.4564039i | AB106: 2000-10698212.4714901i | AC106: 16293.338002331-18278355.9591675i | AD106: 9999.9895152456-9.34734418945586i | AE106: -178.504465791722+17.8791045842409i
A107: 60.362 | B107: 1.54 | C107: 34.67368505 | D107: 60.36187508 | E107: 170.8635044 | H107: 0.016-13.9093293865257i | I107: 0.0005-229.503934877674i | J107: 0.0142253060593125-13.1145114958485i | L107: 0.183294734327642-0.00256231317153538i | M107: 0.0045+0.000326791782633161i | N107: 0.976061773909502-0.00202511641464521i | O107: -0.2104352134 | P107: -0.118876141 | Q107: 217.8611884 | R107: 1.54 | S107: 15.35258979 | T107: 1+0.0017777472975244i | U107: 45.00928529 | V107: 170.9823805 | W107: 59.99994779 | X107: -0.1988634508 | Y107: 999.987965465673-3.47079414486452i | Z107: -67501157.316963i | AA107: 23700-21052621.9511802i | AB107: 2000-10216713.5939551i | AC107: 16293.3379492945-17455694.7014104i | AD107: 9999.9885036968-9.78786976112635i | AE107: -178.330530609584+18.7031468401335i
A108: 60.351 | B108: 1.56 | C108: 36.30780548 | D108: 60.35124174 | E108: 170.4408009 | H108: 0.016-13.2833064406621i | I108: 0.0005-219.174556270925i | J108: 0.0142253060532212-12.5242613336446i | L108: 0.183291011292152-0.00268301252513555i | M108: 0.0045+0.000342193004863627i | N108: 0.976063624661914-0.00212056869367432i | O108: -0.2104169399 | P108: -0.1244790217 | Q108: 228.1286699 | R108: 1.56 | S108: 15.35260807 | T108: 1+0.00186152994645813i | U108: 44.99863367 | V108: 170.5652799 | W108: 59.99994275 | X108: -0.208235516 | Y108: 999.986804410816-3.63436341796015i | Z108: -64463104.7855661i | AA108: 23700-20105097.8796893i | AB108: 2000-9756885.73573153i | AC108: 16293.337891141-16670059.3124408i | AD108: 9999.98739455589-10.2491564873464i | AE108: -178.140210703155+19.5633175141909i
A109: 60.34 | B109: 1.58 | C109: 38.01893963 | D109: 60.33961247 | E109: 169.9993164 | H109: 0.016-12.6854591686831i | I109: 0.0005-209.310076283271i | J109: 0.0142253060465422-11.9605768088863i | L109: 0.183286929252353-0.00280939156371171i | M109: 0.0045+0.000358320064336024i | N109: 0.976065653974618-0.00222052120131681i | O109: -0.2103969034 | P109: -0.1303460204 | Q109: 238.8800429 | R109: 1.58 | S109: 15.3526281 | T109: 1+0.00194926114998797i | U109: 44.98698437 | V109: 170.1296624 | W109: 59.99993723 | X109: -0.2180492612 | Y109: 999.985531342576-3.80564084886746i | Z109: -61561787.1421388i | AA109: 23700-19200219.4163385i | AB109: 2000-9317753.54028199i | AC109: 16293.3378273772-15919783.3542667i | AD109: 9999.98617840739-10.7321827851075i | AE109: -177.932003891281+20.4609294506759i
A110: 60.327 | B110: 1.6 | C110: 39.81071706 | D110: 60.32689707 | E110: 169.5383278 | H110: 0.016-12.11451945637i | I110: 0.0005-199.889571030105i | J110: 0.0142253060392189-11.4222622711221i | L110: 0.183282453610052-0.00294171667438932i | M110: 0.0045+0.000375207168705686i | N110: 0.976067879075406-0.00232518627888702i | O110: -0.2103749338 | P110: -0.1364895938 | Q110: 250.1381125 | R110: 1.6 | S110: 15.35265007 | T110: 1+0.00204112699775893i | U110: 44.97424699 | V110: 169.6748173 | W110: 59.99993117 | X110: -0.2283255002 | Y110: 999.984135454731-3.98498961934816i | Z110: -58791050.3029722i | AA110: 23700-18336067.1925881i | AB110: 2000-8898385.54934421i | AC110: 16293.3377574614-15203275.3909894i | AD110: 9999.9848449275-11.2379731789099i | AE110: -177.704278474873+21.3973024658333i
A111: 60.313 | B111: 1.62 | C111: 41.68693835 | D111: 60.31299773 | E111: 169.0571 | H111: 0.016-11.5692762640458i | I111: 0.0005-190.893058356756i | J111: 0.0142253060311889-10.9081758830443i | L111: 0.183277546436743-0.00308026660809113i | M111: 0.0045+0.000392890137785074i | N111: 0.976070318854296-0.00243478631238788i | O111: -0.2103508446 | P111: -0.1429227871 | Q111: 261.9267585 | R111: 1.62 | S111: 15.35267416 | T111: 1+0.0021373223495508i | U111: 44.96032356 | V111: 169.2000228 | W111: 59.99992453 | X111: -0.2390860278 | Y111: 999.982604898618-4.1727900136861i | Z111: -56145017.1637518i | AA111: 23700-17510808.2257126i | AB111: 2000-8497892.22718407i | AC111: 16293.3376808002-14519015.6131552i | AD111: 9999.98338279636-11.7676004731697i | AE111: -177.455263707627+22.3737562566865i
A112: 60.298 | B112: 1.64 | C112: 43.65158322 | D112: 60.29780856 | E112: 168.5548886 | H112: 0.016-11.0485730577975i | I112: 0.0005-182.301455453659i | J112: 0.0142253060223843-10.4172271984991i | L112: 0.183272166153859-0.00322533303403442i | M112: 0.0045+0.000411406479522403i | N112: 0.976072994023934-0.00254955421143807i | O112: -0.2103244313 | P112: -0.1496592618 | Q112: 274.2709863 | R112: 1.64 | S112: 15.35270058 | T112: 1+0.00223805124860187i | U112: 44.94510798 | V112: 168.7045479 | W112: 59.99991725 | X112: -0.2503536654 | Y112: 999.980926682593-4.36944022267377i | Z112: -53618075.133429i | AA112: 23700-16722692.0307987i | AB112: 2000-8115424.07376992i | AC112: 16293.3375967429-13865552.6140347i | AD112: 9999.98177960203-12.3221880269247i | AE112: -177.183039901249+23.3916020518768i
A113: 60.281 | B113: 1.66 | C113: 45.70881896 | D113: 60.28121504 | E113: 168.0309422 | H113: 0.016-10.5513053563128i | I113: 0.0005-174.096538379161i | J113: 0.0142253060127303-9.94837484950386i | L113: 0.183266267182471-0.00337722111619832i | M113: 0.0045+0.000430795469561026i | N113: 0.976075927295462-0.00266973391158992i | O113: -0.2102954696 | P113: -0.1567133251 | Q113: 287.1969797 | R113: 1.66 | S113: 15.35272954 | T113: 1+0.00234352735441198i | U113: 44.9284855 | V113: 168.1876555 | W113: 59.99990926 | X113: -0.2621523097 | Y113: 999.979086561781-4.57535718518867i | Z113: -51204864.2291652i | AA113: 23700-15970046.9077325i | AB113: 2000-7750169.8228702i | AC113: 16293.3375045761-13241500.3109956i | AD113: 9999.98002173511-12.902912135645i | AE113: -176.885528228049+24.4521328504278i
A114: 60.263 | B114: 1.68 | C114: 47.86300923 | D114: 60.26309346 | E114: 167.484506 | H114: 0.016-10.076418388127i | I114: 0.0005-166.260903404096i | J114: 0.0142253060021448-9.50062433736631i | L114: 0.183259799559583-0.00353625011218338i | M114: 0.0045+0.000451098234548342i | N114: 0.976079143571369-0.00279558090126317i | O114: -0.2102637137 | P114: -0.1640999606 | Q114: 300.7321564 | R114: 1.68 | S114: 15.35276129 | T114: 1+0.00245397439594298i | U114: 44.91033217 | V114: 167.648606 | W114: 59.99990051 | X114: -0.2745069831 | Y114: 999.977068917208-4.79097746908678i | Z114: -48900265.7070869i | AA114: 23700-15251276.3952991i | AB114: 2000-7401354.72124809i | AC114: 16293.337403517-12645535.005435i | AD114: 9999.97809427322-13.5110045251845i | AE114: -176.560480305554+25.5566120826722i
A115: 60.243 | B115: 1.7 | C115: 50.11872336 | D115: 60.24331043 | E115: 166.9148254 | H115: 0.016-9.62290485431132i | I115: 0.0005-158.777930096137i | J115: 0.0142253059905381-9.07302592321918i | L115: 0.183252708517847-0.00370275399481587i | M115: 0.0045+0.00047235783937093i | N115: 0.97608267015695-0.00292736277459445i | O115: -0.210228894 | P115: -0.1718348602 | Q115: 314.9052262 | R115: 1.7 | S115: 15.35279611 | T115: 1+0.00256962664617786i | U115: 44.89051431 | V115: 167.0866602 | W115: 59.99989091 | X115: -0.2874438871 | Y115: 999.974856623275-5.01675819321462i | Z115: -46699391.2047463i | AA115: 23700-14564855.8848743i | AB115: 2000-7068238.88530665i | AC115: 16293.337292708-12076392.5750373i | AD115: 9999.97598085431-14.1477549631394i | AE115: -176.205467673734+26.7062605167867i
A116: 60.222 | B116: 1.72 | C116: 52.48074602 | D116: 60.22172224 | E116: 166.3211502 | H116: 0.016-9.18980279185705i | I116: 0.0005-151.631746065641i | J116: 0.0142253059778116-8.66467261349704i | L116: 0.183244934025281-0.00387708209676234i | M116: 0.0045+0.000494619378500942i | N116: 0.97608653699218-0.00306535981158309i | O116: -0.2101907148 | P116: -0.1799344585 | Q116: 329.7462523 | R116: 1.72 | S116: 15.35283429 | T116: 1+0.00269072941904512i | U116: 44.86888795 | V116: 166.5010846 | W116: 59.99988039 | X116: -0.3009904573 | Y116: 999.972430902453-5.25317799241944i | Z116: -44597572.3722473i | AA116: 23700-13909329.3865257i | AB116: 2000-6750115.7316963i | AC116: 16293.3371712082-11532865.7924015i | AD116: 9999.97366353778-14.8145139931288i | AE116: -175.81787130597+27.902241225108i
A117: 60.198 | B117: 1.74 | C117: 54.95408739 | D117: 60.19817446 | E117: 165.7027398 | H117: 0.016-8.7761935332226i | I117: 0.0005-144.807193298172i | J117: 0.0142253059638572-8.27469823608092i | L117: 0.183236410281228-0.00405959977831537i | M117: 0.0045+0.000517930071647529i | N117: 0.97609077690596-0.00320986558700547i | O117: -0.2101488521 | P117: -0.1884159674 | Q117: 345.2867144 | R117: 1.74 | S117: 15.35287616 | T117: 1+0.00281753958976256i | U117: 44.8452983 | V117: 165.8911558 | W117: 59.99986885 | X117: -0.3151754216 | Y117: 999.969771165975-5.50073802751602i | Z117: -42590350.9700506i | AA117: 23700-13283306.4406621i | AB117: 2000-6446310.47855661i | AC117: 16293.3370379865-11013801.7643495i | AD117: 9999.97112265222-15.5126957977701i | AE117: -175.394871330491+29.1456424174514i
A118: 60.173 | B118: 1.76 | C118: 57.54399373 | D118: 60.17250132 | E118: 165.0588688 | H118: 0.016-8.38119975771679i | I118: 0.0005-138.289796002327i | J118: 0.0142253059485566-7.90227560303168i | L118: 0.183227065164463-0.00425068911838299i | M118: 0.0045+0.000542339363916176i | N118: 0.97609542589492-0.00336118760966403i | O118: -0.2101029505 | P118: -0.1972974136 | Q118: 361.5595759 | R118: 1.76 | S118: 15.35292206 | T118: 1+0.002950326139704i | U118: 44.81957926 | V118: 165.2561662 | W118: 59.99985619 | X118: -0.3300288614 | Y118: 999.966854839166-5.75996304225202i | Z118: -40673469.4124492i | AA118: 23700-12685459.1686831i | AB118: 2000-6156178.71421388i | AC118: 16293.3368919118-10518099.4864859i | AD118: 9999.96833662838-16.2437811963862i | AE118: -174.933437180167+30.4374579450179i
A119: 60.145 | B119: 1.78 | C119: 60.25595861 | D119: 60.14452533 | E119: 164.3888332 | H119: 0.016-8.00398363058419i | I119: 0.0005-132.06572990464i | J119: 0.0142253059317798-7.54661475601302i | L119: 0.18321681962901-0.00445074962856249i | M119: 0.0045+0.000567899030688394i | N119: 0.97610052342912-0.00351964799364416i | O119: -0.2100526203 | P119: -0.2065976778 | Q119: 378.5993538 | R119: 1.78 | S119: 15.35297239 | T119: 1+0.00308937072694486i | U119: 44.79155294 | V119: 164.5954309 | W119: 59.99984232 | X119: -0.3455822749 | Y119: 999.963657169938-6.03140246939772i | Z119: -38842861.7366588i | AA119: 23700-12114519.45637i | AB119: 2000-5879105.03029722i | AC119: 16293.336731744-10044707.5078192i | AD119: 9999.96528181614-17.0093207837687i | AE119: -174.430318435561+31.7785652794452i
A120: 60.114 | B120: 1.8 | C120: 63.09573445 | D120: 60.11405682 | E120: 163.6919574 | H120: 0.016-7.64374502584487i | I120: 0.0005-126.12179292644i | J120: 0.0142253059133843-7.20696129068415i | L120: 0.183205587042775-0.00466019898999505i | M120: 0.0045+0.000594663287444251i | N120: 0.976106112787271-0.0036855841633668i | O120: -0.2099974341 | P120: -0.2163365349 | Q120: 396.4421916 | R120: 1.8 | S120: 15.35302757 | T120: 1+0.00323496828369673i | U120: 44.76102925 | V120: 163.908294 | W120: 59.99982711 | X120: -0.3618686436 | Y120: 999.960151018833-6.31563158817313i | Z120: -37094644.9783647i | AA120: 23700-11569276.2640458i | AB120: 2000-5614501.71637518i | AC120: 16293.3365561235-9592621.70049407i | AD120: 9999.96193228368-17.8109382166091i | AE120: -173.882036679204+33.16970077854i
A121: 60.081 | B121: 1.82 | C121: 66.0693448 | D121: 60.08089364 | E121: 162.9676024 | H121: 0.016-7.29971982912008i | I121: 0.0005-120.445377180481i | J121: 0.0142253058932142-6.88259475650695i | L121: 0.183193272463757-0.00487947381248305i | M121: 0.0045+0.000622688904760673i | N121: 0.976112241424322-0.00385934959434844i | O121: -0.2099369235 | P121: -0.2265346973 | Q121: 415.1259365 | R121: 1.82 | S121: 15.35308808 | T121: 1+0.00338742764189806i | U121: 44.72780556 | V121: 163.1941371 | W121: 59.99981043 | X121: -0.3789225027 | Y121: 999.956306628826-6.6132527353152i | Z121: -35425110.9354356i | AA121: 23700-11048573.0577975i | AB121: 2000-5361807.5133429i | AC121: 16293.3363635595-9160883.12990081i | AD121: 9999.95825959748-18.6503336545223i | AE121: -173.284878738344+34.6114320650974i
A122: 60.045 | B122: 1.84 | C122: 69.18309709 | D122: 60.04482084 | E122: 162.2151739 | H122: 0.016-6.97117831684332i | I122: 0.0005-115.024442227915i | J122: 0.014225305871098-6.57282712857384i | L122: 0.183179771848036-0.00510903041509444i | M122: 0.0045+0.000652035328729449i | N122: 0.97611896137453-0.00404131459172166i | O122: -0.2098705747 | P122: -0.2372138601 | Q122: 434.6902192 | R122: 1.84 | S122: 15.35315443 | T122: 1+0.0035470721882882i | U122: 44.69166641 | V122: 162.4523878 | W122: 59.99979214 | X122: -0.3967800137 | Y122: 999.952091372946-6.92489657217854i | Z122: -33830718.3023279i | AA122: 23700-10551305.3563128i | AB122: 2000-5120486.42291652i | AC122: 16293.3361524173-8748576.02064707i | AD122: 9999.95423258085-19.5292873629011i | AE122: -172.634891758372+36.1041273699233i
A123: 60.006 | B123: 1.86 | C123: 72.44359601 | D123: 60.00561059 | E123: 161.4341322 | H123: 0.016-6.65742360841877i | I123: 0.0005-109.84748953891i | J123: 0.0142253058468481-6.27700134821469i | L123: 0.183164971183323-0.00534934562717844i | M123: 0.0045+0.000682764807050358i | N123: 0.976126329693459-0.00423186710871645i | O123: -0.2097978245 | P123: -0.2483967478 | Q123: 455.176538 | R123: 1.86 | S123: 15.35322718 | T123: 1+0.00371424055035395i | U123: 44.65238341 | V123: 161.682529 | W123: 59.99977208 | X123: -0.4154790408 | Y123: 999.947469477589-7.25122341035592i | Z123: -32308085.1585029i | AA123: 23700-10076418.388127i | AB123: 2000-4890026.57070869i | AC123: 16293.3359209044-8354825.81407515i | AD123: 9999.9498170494-20.4496634851823i | AE123: -171.927880619452+37.6479217271427i
A124: 59.963 | B124: 1.88 | C124: 75.8577575 | D124: 59.96302212 | E124: 160.6240021 | H124: 0.016-6.357790188044i | I124: 0.0005-104.903538102726i | J124: 0.0142253058202586-5.99448992928737i | L124: 0.183148745541249-0.00560091760836337i | M124: 0.0045+0.000714942521066895i | N124: 0.976134408942649-0.00443141360747296i | O124: -0.2097180552 | P124: -0.260107164 | Q124: 476.6283474 | R124: 1.88 | S124: 15.35330695 | T124: 1+0.00388928731460391i | U124: 44.60971517 | V124: 160.8841093 | W124: 59.9997501 | X124: -0.4350592312 | Y124: 999.942401719164-7.59292459839969i | Z124: -30853981.7949194i | AA124: 23700-9622904.85431132i | AB124: 2000-4669939.12047463i | AC124: 16293.3356670557-7978797.31320583i | AD124: 9999.94497552082-21.4134139924476i | AE124: -171.159408283014+39.2426799616608i
A125: 59.917 | B125: 1.9 | C125: 79.43282347 | D125: 59.91680186 | E125: 159.7843837 | H125: 0.016-6.07164249306185i | I125: 0.0005-100.182101135521i | J125: 0.0142253057911039-5.72469362719532i | L125: 0.183130958041076-0.00586426668569645i | M125: 0.0045+0.000748636724024627i | N125: 0.976143267721103-0.00464037996473657i | O125: -0.2096305894 | P125: -0.2723700438 | Q125: 499.0911493 | R125: 1.9 | S125: 15.35339442 | T125: 1+0.00407258377869397i | U125: 44.56340744 | V125: 160.0567537 | W125: 59.99972599 | X125: -0.4555620989 | Y125: 999.936845091527-7.95072397231995i | Z125: -29465323.8633884i | AA125: 23700-9189802.79185705i | AB125: 2000-4459757.23722473i | AC125: 16293.3353887159-7619692.91117385i | AD125: 9999.93966689676-22.4225828186536i | AE125: -170.324799731239+40.8879564780741i
A126: 59.867 | B126: 1.92 | C126: 83.17637711 | D126: 59.86668381 | E126: 158.9149639 | H126: 0.016-5.79837356584677i | I126: 0.0005-95.6731638364718i | J126: 0.0142253057591362-5.46704016780958i | L126: 0.183111458716784-0.0061399362056024i | M126: 0.0045+0.00078391888584549i | N126: 0.976152981248101-0.00485921242519326i | O126: -0.2095346847 | P126: -0.2852115083 | Q126: 522.6125906 | R126: 1.92 | S126: 15.35349032 | T126: 1+0.00426451873899946i | U126: 44.51319348 | V126: 159.2001754 | W126: 59.99969955 | X126: -0.4770311123 | Y126: 999.930752441388-8.32537937263228i | Z126: -28139165.8342564i | AA126: 23700-8776193.53322252i | AB126: 2000-4259035.09700506i | AC126: 16293.3350835226-7276750.89939639i | AD126: 9999.933846114-23.4793101901619i | AE126: -169.419150238547+42.5829519503212i
A127: 59.812 | B127: 1.94 | C127: 87.096359 | D127: 59.81238999 | E127: 158.0155287 | H127: 0.016-5.53740376636634i | I127: 0.0005-91.3671621450446i | J127: 0.0142253057240846-5.22098303359865i | L127: 0.18309008327895-0.0064284933977812i | M127: 0.0045+0.000820863844725067i | N127: 0.976163632002306-0.00508837860542477i | O127: -0.2094295268 | P127: -0.2986589221 | Q127: 547.2425632 | R127: 1.94 | S127: 15.35359548 | T127: 1+0.00446549931530436i | U127: 44.45879451 | V127: 158.3141876 | W127: 59.99967057 | X127: -0.4995117858 | Y127: 999.924072068605-8.71768423082267i | Z127: -26872694.7485426i | AA127: 23700-8381199.75771679i | AB127: 2000-4067346.94124492i | AC127: 16293.3347488847-6949243.85188756i | AD127: 9999.92746376197-24.5858371586409i | AE127: -168.437338785995+44.3264671248003i
A128: 59.754 | B128: 1.96 | C128: 91.20108394 | D128: 59.75363128 | E128: 157.0859752 | H128: 0.016-5.28817954268705i | I128: 0.0005-87.2549624543359i | J128: 0.0142253056856511-4.98600030439137i | L128: 0.183066651762054-0.0067305302475175i | M128: 0.0045+0.000859549965874438i | N128: 0.97617531042262-0.00532836855171553i | O128: -0.2093142227 | P128: -0.3127409539 | Q128: 573.0333106 | R128: 1.96 | S128: 15.35371078 | T128: 1+0.00467595181435694i | U128: 44.3999205 | V128: 157.3987161 | W128: 59.99963878 | X128: -0.5230517763 | Y128: 999.916747287995-9.12846922819438i | Z128: -25663224.2512753i | AA128: 23700-8003983.63058419i | AB128: 2000-3884286.17366588i | AC128: 16293.3343819617-6636477.0822899i | AD128: 9999.92046566335-25.7445103468223i | AE128: -167.374047492491+46.1168540892078i
A129: 59.69 | B129: 1.98 | C129: 95.4992586 | D129: 59.69010842 | E129: 156.1263243 | H129: 0.016-5.05017225681635i | I129: 0.0005-83.3278422374696i | J129: 0.0142253056435095-4.76159355031437i | L129: 0.183040967047137-0.00704666437212226i | M129: 0.0045+0.000900059307743301i | N129: 0.976188115676741-0.00557969585522102i | O129: -0.2091877935 | P129: -0.3274876398 | Q129: 600.0395385 | R129: 1.98 | S129: 15.35383721 | T129: 1+0.00489632263412355i | U129: 44.3362712 | V129: 156.4538119 | W129: 59.99960394 | X129: -0.5477009836 | Y129: 999.908715948984-9.5586040301543i | Z129: -24508188.8933735i | AA129: 23700-7643745.02584487i | AB129: 2000-3709464.49783647i | AC129: 16293.3339796385-6337787.17035174i | AD129: 9999.91279241432-26.9577869170323i | AE129: -166.223787984986+47.9519655270574i
A130: 59.622 | B130: 2 | C130: 100 | D130: 59.62151326 | E130: 155.1367334 | H130: 0.016-4.82287706339075i | I130: 0.0005-79.5774715459475i | J130: 0.0142253055973024-4.54728677455556i | L130: 0.183012813248975-0.00737753989636475i | M130: 0.0045+0.00094247779607694i | N130: 0.976202156503998-0.00584289882831583i | O130: -0.2090491658 | P130: -0.3429304506 | Q130: 628.3185307 | R130: 2 | S130: 15.35397584 | T130: 1+0.00512707921065855i | U130: 44.26753742 | V130: 155.4796638 | W130: 59.99956573 | X130: -0.5735116555 | Y130: 999.899909909009-10.0089990990891i | Z130: -23405138.6899845i | AA130: 23700-7299719.82912008i | AB130: 2000-3542511.09354356i | AC130: 16293.3335385-6052540.55472376i | AD130: 9999.90437888031-28.2282397728599i | AE130: -164.980935655765+49.8291026749093i
A131: 59.548 | B131: 2.02 | C131: 104.7128548 | D131: 59.54753046 | E131: 154.1175084 | H131: 0.016-4.605811838831i | I131: 0.0005-75.9958953407119i | J131: 0.0142253055466372-4.34262540371095i | L131: 0.182981953956082-0.00772382832075459i | M131: 0.0045+0.000986895406176258i | N131: 0.976217552139633-0.0061185417462884i | O131: -0.2088971624 | P131: -0.3591023617 | Q131: 657.9302708 | R131: 2.02 | S131: 15.35412785 | T131: 1+0.00536871100959885i | U131: 44.19340262 | V131: 154.4766108 | W131: 59.99952383 | X131: -0.6005384979 | Y131: 999.890254456278-10.4806075890698i | Z131: -22351733.9237387i | AA131: 23700-6971178.31684332i | AB131: 2000-3383071.83023279i | AC131: 16293.3330548012-5780132.18909055i | AD131: 9999.89515364324-29.5585630048056i | AE131: -163.639772750024+51.7449629255629i
A132: 59.468 | B132: 2.04 | C132: 109.6478196 | D132: 59.46783933 | E132: 153.0691156 | H132: 0.016-4.39851615869336i | I132: 0.0005-72.5755166184406i | J132: 0.0142253054910839-4.14717532357352i | L132: 0.18294813031104-0.00808622937538588i | M132: 0.0045+0.00103340635374745i | N132: 0.976234433328422-0.00640721615893494i | O132: -0.2087304926 | P132: -0.3760379278 | Q132: 688.9375692 | R132: 2.04 | S132: 15.35429452 | T132: 1+0.00562173056438612i | U132: 44.11354481 | V132: 153.4451535 | W132: 59.99947789 | X132: -0.6288387904 | Y132: 999.879667676995-10.9744273257073i | Z132: -21345740.1818943i | AA132: 23700-6657423.60841877i | AB132: 2000-3230808.51585029i | AC132: 16293.3325244361-5519984.25878616i | AD132: 9999.88503839541-30.9515775912294i | AE132: -162.194541180951+53.695588273711i
A133: 59.382 | B133: 2.06 | C133: 114.8153621 | D133: 59.38211608 | E133: 151.992192 | H133: 0.016-4.20055032104765i | I133: 0.0005-69.3090802972864i | J133: 0.014225305430171-3.96052195831891i | L133: 0.182911058917758-0.00846547185073973i | M133: 0.0045+0.00108210929474614i | N133: 0.976252943436295-0.0067095422770407i | O133: -0.2085477412 | P133: -0.3937733606 | Q133: 721.4061965 | R133: 2.06 | S133: 15.35447727 | T133: 1+0.005886674563419i | U133: 44.02763881 | V133: 152.3859653 | W133: 59.99942753 | X133: -0.6584725064 | Y133: 999.868059761756-11.4915028745588i | Z133: -20385023.6168489i | AA133: 23700-6357790.188044i | AB133: 2000-3085398.17949195i | AC133: 16293.3319429024-5271544.9551718i | AD133: 9999.87394727495-32.4102373664346i | AE133: -160.63950587154+55.6763160760738i
A134: 59.29 | B134: 2.08 | C134: 120.2264435 | D134: 59.29003638 | E134: 150.8875549 | H134: 0.016-4.01149441381047i | I134: 0.0005-66.1896578278729i | J134: 0.0142253053633811-3.78226939113429i | L134: 0.182870429561394-0.00886231439533364i | M134: 0.0045+0.00113310753463991i | N134: 0.976273239669443-0.00702617043922357i | O134: -0.2083473563 | P134: -0.4123466113 | Q134: 755.4050231 | R134: 2.08 | S134: 15.35467765 | T134: 1+0.0061641049884411i | U134: 43.93535873 | V134: 151.2999015 | W134: 59.9993723 | X134: -0.6895024397 | Y134: 999.855332245257-12.032927701555i | Z134: -19467546.4199626i | AA134: 23700-6071642.49306185i | AB134: 2000-2946532.38633884i | AC134: 16293.3313052634-5034287.30517559i | AD134: 9999.86178613712-33.9376352682471i | AE134: -158.969029260761+57.6817338879244i
A135: 59.191 | B135: 2.1 | C135: 125.8925412 | D135: 59.19127822 | E135: 149.7562094 | H135: 0.016-3.8309474240554i | I135: 0.0005-63.2106324969141i | J135: 0.0142253052901476-3.61203952442595i | L135: 0.182825902725735-0.00927754626837975i | M135: 0.0045+0.00118650924753302i | N135: 0.97629549441133-0.00735778266516509i | O135: -0.2081276363 | P135: -0.4317974574 | Q135: 791.006165 | R135: 2.1 | S135: 15.35489737 | T135: 1+0.00645461030657964i | U135: 43.83638085 | V135: 150.1880069 | W135: 59.99931174 | X135: -0.7219943362 | Y135: 999.841377172969-12.5998464289792i | Z135: -18591362.4990924i | AA135: 23700-5798373.56584677i | AB135: 2000-2813916.58342564i | AC135: 16293.3306061062-4807708.05351228i | AD135: 9999.84845175545-35.5370098780001i | AE135: -157.177657375206+59.7056404303274i
A136: 59.086 | B136: 2.12 | C136: 131.8256739 | D136: 59.08552498 | E136: 148.599354 | H136: 0.016-3.65852638741083i | I136: 0.0005-60.3656853922788i | J136: 0.0142253052098488-3.4494712778235i | L136: 0.182777106891962-0.00971198803364737i | M136: 0.0045+0.00124242770561822i | N136: 0.976319896689052-0.00770509430187161i | O136: -0.2078867153 | P136: -0.4521675946 | Q136: 828.2851371 | R136: 2.12 | S136: 15.35513829 | T136: 1+0.00675880671856311i | U136: 43.73038669 | V136: 149.0515216 | W136: 59.99924535 | X136: -0.756017032 | Y136: 999.826076187757-13.1934571905726i | Z136: -17754613.3506702i | AA136: 23700-5537403.76636634i | AB136: 2000-2687269.47485426i | AC136: 16293.3298394957-4591326.59521101i | AD136: 9999.83383094573-37.2117522664049i | AE136: -155.260217545801+61.7410150211785i
A137: 58.972 | B137: 2.14 | C137: 138.0384265 | D137: 58.97246881 | E137: 147.4183831 | H137: 0.016-3.49386557574113i | I137: 0.0005-57.6487819997288i | J137: 0.0142253051218027-3.29421982227997i | L137: 0.182723635601852-0.0101664921784822i | M137: 0.0045+0.00130098151944222i | N137: 0.976346653781579-0.00806885577030559i | O137: -0.2076225474 | P137: -0.4735007332 | Q137: 867.321013 | R137: 2.14 | S137: 15.35540246 | T137: 1+0.00707733946576565i | U137: 43.61706635 | V137: 147.8918839 | W137: 59.99917255 | X137: -0.7916425979 | Y137: 999.809299528812-13.8150140893755i | Z137: -16955524.1175673i | AA137: 23700-5288179.54268705i | AB137: 2000-2566322.42512753i | AC137: 16293.3289989239-4384683.95618793i | AD137: 9999.81779960564-38.9654131593767i | AE137: -153.211927435342+63.7799980472934i
A138: 58.852 | B138: 2.16 | C138: 144.5439771 | D138: 58.85181415 | E138: 146.2148876 | H138: 0.016-3.3366157213883i | I138: 0.0005-55.054159402907i | J138: 0.0142253050252622-3.14595584864326i | L138: 0.182665044267613-0.0106419436393858i | M138: 0.0045+0.00136229488949458i | N138: 0.97637599298367-0.00844985442051776i | O138: -0.2073328888 | P138: -0.4958427009 | Q138: 908.196593 | R138: 2.16 | S138: 15.35569212 | T138: 1+0.00741088419885051i | U138: 43.49612203 | V138: 146.7107303 | W138: 59.99909272 | X138: -0.8289464904 | Y138: 999.790904934523-14.4658297619287i | Z138: -16192399.8243844i | AA138: 23700-5050172.25681635i | AB138: 2000-2450818.88933735i | AC138: 16293.3280772555-4187341.81970063i | AD138: 9999.80022166167-40.8017104384964i | AE138: -151.02851453337+65.8138852389097i
A139: 58.723 | B139: 2.18 | C139: 151.3561248 | D139: 58.7232814 | E139: 144.9906512 | H139: 0.016-3.18644327632838i | I139: 0.0005-52.5763140594184i | J139: 0.0142253049194076-3.00436486914713i | L139: 0.182600846709835-0.0111392602126701i | M139: 0.0045+0.00142649786965362i | N139: 0.976408163540564-0.00884891650430147i | O139: -0.2070152797 | P139: -0.5192415508 | Q139: 950.9985798 | R139: 2.18 | S139: 15.35600973 | T139: 1+0.0077601484109157i | U139: 43.36727167 | V139: 145.5098928 | W139: 59.9990052 | X139: -0.8680077097 | Y139: 999.770736440118-15.1472780524439i | Z139: -15463621.7821819i | AA139: 23700-4822877.06339075i | AB139: 2000-2340513.86899845i | AC139: 16293.3270666663-3998881.59661949i | AD139: 9999.78094791461-42.7245369914283i | AE139: -148.706344673547+67.8331386024112i
A140: 58.587 | B140: 2.2 | C140: 158.4893192 | D140: 58.58661056 | E140: 143.7476441 | H140: 0.016-3.04302970467147i | I140: 0.0005-50.2099901270791i | J140: 0.0142253048033403-2.8691465503407i | L140: 0.182530511404346-0.0116593928254316i | M140: 0.0045+0.0014937266430481i | N140: 0.976443438770058-0.00926690927540442i | O140: -0.2066670224 | P140: -0.543747676 | Q140: 995.817762 | R140: 2.2 | S140: 15.35635799 | T140: 1+0.00812587293818165i | U140: 43.23025258 | V140: 144.2913918 | W140: 59.99890924 | X140: -0.9089089646 | Y140: 999.74862306005-15.8607968005231i | Z140: -14767644.1550233i | AA140: 23700-4605811.838831i | AB140: 2000-2235173.39237387i | AC140: 16293.3259585774-3818903.53754398i | AD140: 9999.75981477367-44.7379689282548i | AE140: -146.242557446815+69.8274168396144i
A141: 58.442 | B141: 2.22 | C141: 165.9586907 | D141: 58.44156489 | E141: 142.4880126 | H141: 0.016-2.90607080700424i | I141: 0.0005-47.9501683155702i | J141: 0.0142253046760752-2.74001407604069i | L141: 0.182453457418319-0.0122033256383998i | M141: 0.0045+0.0015641238109199i | N141: 0.976482118390192-0.00970474322848038i | O141: -0.2062851587 | P141: -0.5694139314 | Q141: 1042.749207 | R141: 2.22 | S141: 15.35673985 | T141: 1+0.00850883353140424i | U141: 43.08482505 | V141: 143.0574266 | W141: 59.99880402 | X141: -0.9517368456 | Y141: 999.724377344156-16.6078907459352i | Z141: -14102990.68105i | AA141: 23700-4398516.15869336i | AB141: 2000-2134574.01818943i | AC141: 16293.3247435822-3647025.88488075i | AD141: 9999.73664286861-46.8462741803828i | AE141: -143.635205642772+71.7856278997248i
A142: 58.288 | B142: 2.24 | C142: 173.7800829 | D142: 58.28793438 | E142: 141.2140656 | H142: 0.016-2.77527607514239i | I142: 0.0005-45.7920552398494i | J142: 0.0142253045365316-2.61669353895607i | L142: 0.182369050015664-0.0127720759480626i | M142: 0.0045+0.00163783869510039i | N142: 0.976524531072545-0.0101633744892695i | O142: -0.2058664451 | P142: -0.5962957622 | Q142: 1091.892463 | R142: 2.24 | S142: 15.35715856 | T142: 1+0.00890984250134613i | U142: 42.93077582 | V142: 141.8103614 | W142: 59.99868865 | X142: -0.9965820051 | Y142: 999.697793795607-17.3901345538516i | Z142: -13468251.5411322i | AA142: 23700-4200550.32104765i | AB142: 2000-2038502.36168489i | AC142: 16293.3234113668-3482884.06308442i | AD142: 9999.71123552807-49.0539214993533i | AE142: -140.883395085283+73.6960059424813i
A143: 58.126 | B143: 2.26 | C143: 181.9700859 | D143: 58.12553898 | E143: 139.9282568 | H143: 0.016-2.65036807592365i | I143: 0.0005-43.7310732527402i | J143: 0.0142253043835252-2.49892335969375i | L143: 0.182276595911715-0.0133666938508132i | M143: 0.0045+0.00171502765474205i | N143: 0.976571037243134-0.0106438073699816i | O143: -0.2054073245 | P143: -0.624451341 | Q143: 1143.35177 | R143: 2.26 | S143: 15.35761768 | T143: 1+0.00932975044179678i | U143: 42.7679213 | V143: 140.5527081 | W143: 59.99856215 | X143: -1.043539346 | Y143: 999.66864713751-18.2091759637962i | Z143: -12862080.368453i | AA143: 23700-4011494.41381047i | AB143: 2000-1946754.64199626i | AC143: 16293.3219506218-3326129.90534403i | AD143: 9999.68337711123-51.3655898736143i | AE143: -137.987420481611+75.5462144139181i
A144: 57.954 | B144: 2.28 | C144: =10^R144 -> 190.5460718 | D144: =S144+U144 -> 57.95423152 | E144: =P144+V144 -> 138.6331642 | H144: =IMSUM(IMDIV(1,COMPLEX(0,Q144*COUT*10^-6)),ESR*10^-3) -> 0.016-2.53108186273498i | I144: =IMSUM(IMDIV(1,COMPLEX(0,Q144*MLCC*10^-6)),MLCC_ESR*10^-3) -> 0.0005-41.7628507351271i | J144: =IMDIV(IMPRODUCT(H144,I144),IMSUM(H144,I144)) -> 0.014225304215757-2.38645373191383i | L144: =IMDIV(IMPRODUCT(J144,VOUT/IOUT_max),IMSUM(J144,VOUT/IOUT_max)) -> 0.182175338157611-0.0139882616266504i | M144: =COMPLEX(DCR*10^-3,Q144*LOUT*10^-6) -> 0.0045+0.00179585441797719i | N144: =IMDIV(L144,IMSUM(M144,L144)) -> 0.976622032155046-0.0111470971055493i | O144: =20*LOG(IMABS(N144)) -> -0.2049038965 | P144: =180/PI()*IMARGUMENT(N144) -> -0.6539417131 | Q144: =2*PI()*C144 -> 1197.236279 | R144: 2.28 | S144: =20*LOG(IMABS(N144)*$F$62) -> 15.35812111 | T144: =COMPLEX(1,Q144*(R_1+R_2)*C_1*10^-12) -> 1+0.00976944803379589i | U144: =20*LOG(IMABS(AE153)) -> 42.59611041 | V144: =IF(180/PI()*IMARGUMENT(AE153)<0,180/PI()*IMARGUMENT(AE153)+360,180/PI()*IMARGUMENT(AE153)) -> 139.2871059 | W144: =20*LOG(IMABS(Y144)) -> 59.99842346 | X144: =180/PI()*IMARGUMENT(Y144) -> -1.092708219 | Y144: =IMDIV(10^(DCGAIN/20),IMPRODUCT(COMPLEX(1,2*PI()*C144/(2*PI()*(GBWP*10^6/10^(DCGAIN/20)))),COMPLEX(1,2*PI()*C144/(2*PI()*EAP*10^6)))) -> 999.636690413835-19.0667390653562i | Z144: =IMDIV(1,COMPLEX(0,2*PI()*C144*C_3*10^-12)) -> -12283191.3926845i | AA144: 23700-3830947.4240554i | AB144: 2000-1859136.24990924i | AC144: 16293.3203489471-3176430.91507459i | AD144: 9999.65283117866-53.7861783820447i | AE144: -134.948892234248+77.3234761360103i
A145: =ROUND(ABS(D145),3) -> 57.774 | B145: =LOG(C145) -> 2.3 | C145: 199.5262315 | D145: 57.77390015 | E145: 137.3314669 | H145: 0.016-2.41716441352523i | I145: 0.0005-39.8832128231663i | J145: 0.0142253040318028-2.27904609245673i | L145: 0.182064450635487-0.0146378927941677i | M145: 0.0045+0.00188049042920724i | N145: 0.976677949259317-0.0116743527883433i | O145: -0.2043518839 | P145: -0.6848309518 | Q145: 1253.660286 | R145: =R144+0.02 -> 2.3 | S145: 15.35867312 | T145: 1+0.0102298679348874i | U145: 42.41522703 | V145: 138.0162979 | W145: 59.99827138 | X145: -1.144192628 | Y145: 999.601652909003-19.9646277034412i | Z145: -11730356.712696i | AA145: 23700-3658526.38741083i | AB145: 2000-1775461.33506702i | AC145: 16293.3185927461-3033469.56064722i | AD145: 9999.61933848702-56.3208165037678i | AE145: -131.770848637083+79.0147302902471i
A146: 57.584 | B146: 2.32 | C146: 208.9296131 | D146: 57.58447031 | E146: 136.0259185 | H146: 0.016-2.30837409411145i | I146: 0.0005-38.0881725528389i | J146: 0.0142253038301011-2.17647261531874i | L146: 0.181943032146993-0.0153167307821187i | M146: 0.0045+0.0019691152127594i | N146: 0.976739263903206-0.0122267405211608i | O146: -0.2037465964 | P146: -0.7171863231 | Q146: 1312.743475 | R146: 2.32 | S146: 15.35927841 | T146: 1+0.0107119867574111i | U146: 42.2251919 | V146: 136.7431048 | W146: 59.99810465 | X146: -1.198101447 | Y146: 999.563237868997-20.9047290155358i | Z146: -11202403.6920114i | AA146: 23700-3493865.57574113i | AB146: 2000-1695552.41175673i | AC146: 16293.3166671104-2896942.60186196i | AD146: 9999.58261479035-58.9748749045636i | AE146: -128.457847563552+80.6068149547857i
A147: 57.386 | B147: 2.34 | C147: 218.7761624 | D147: 57.38590611 | E147: 134.7193195 | H147: 0.016-2.20448014564039i | I147: 0.0005-36.3739224030663i | J147: 0.0142253036089395-2.07851572840259i | L147: 0.181810100079654-0.0160259471557471i | M147: 0.0045+0.00206191675368168i | N147: 0.976806497387885-0.0128054868107937i | O147: -0.2030828906 | P147: -0.7510784622 | Q147: 1374.611169 | R147: 2.34 | S147: 15.35994212 | T147: 1+0.0112168271400284i | U147: 42.02596399 | V147: 135.470398 | W147: 59.99792183 | X147: -1.254548642 | Y147: 999.521120005331-21.8890171029765i | Z147: -10698212.4714901i | AA147: 23700-3336615.72138829i | AB147: 2000-1619239.98243844i | AC147: 16293.3145556933-2766560.44673466i | AD147: 9999.5423484297-61.7539767209633i | AE147: -125.016031723704+82.0866724803656i
A148: 57.178 | B148: 2.36 | C148: 229.0867653 | D148: 57.17821105 | E148: 133.4144883 | H148: 0.016-2.10526219511802i | I148: 0.0005-34.7368262194474i | J148: 0.0142253033664407-1.98496765201781i | L148: 0.181664583638484-0.0167667393282562i | M148: 0.0045+0.00215909189648453i | N148: 0.976880221420719-0.0134118822273944i | O148: -0.202355126 | P148: -0.7865815617 | Q148: 1439.394598 | R148: 2.36 | S148: 15.36066988 | T148: 1+0.0117454599168758i | U148: 41.81754117 | V148: 134.2010699 | W148: 59.99772139 | X148: -1.313653506 | Y148: 999.474942761438-22.9195568377568i | Z148: -10216713.5939551i | AA148: 23700-3186443.27632838i | AB148: 2000-1546362.17821819i | AC148: 16293.3122405712-2642046.53723361i | AD148: 9999.49819769049-64.6640093639026i | AE148: -121.453161880276+83.4415735311546i
A149: 56.961 | B149: 2.38 | C149: 239.8832919 | D149: 56.96142815 | E149: 132.1142315 | H149: 0.016-2.01050978796892i | I149: 0.0005-33.1734115014873i | J149: 0.0142253031005461-1.8956299581522i | L149: 0.181505316634178-0.017540327679279i | M149: 0.0045+0.0022608467626743i | N149: 0.976961063000858-0.0140472853581403i | O149: -0.2015571172 | P149: -0.8237735733 | Q149: 1507.231175 | R149: 2.38 | S149: 15.36146789 | T149: 1+0.0122990063889482i | U149: 41.59996026 | V149: 132.9380051 | W149: 59.99750161 | X149: -1.375540907 | Y149: 999.424315319242-23.9985078057396i | Z149: -9756885.73573153i | AA149: 23700-3043029.70467147i | AB149: 2000-1476764.41550233i | AC149: 16293.3097020909-2523136.76266283i | AD149: 9999.44978790534-67.71113686461i | AE149: -117.77861311351+84.6593541658331i
A150: 56.736 | B150: 2.4 | C150: 251.1886432 | D150: 56.73563942 | E150: 130.8213148 | H150: 0.016-1.92002194163385i | I150: 0.0005-31.6803620369586i | J150: 0.0142253028089984-1.81031314957934i | L150: 0.181331029824363-0.0183479519929766i | M150: 0.0045+0.00236739718796472i | N150: 0.977049709780675-0.014713127087493i | O150: -0.200682081 | P150: -0.8627364245 | Q150: 1578.264792 | R150: 2.4 | S150: 15.36234293 | T150: 1+0.0128786407025281i | U150: 41.37329649 | V150: 131.6840512 | W150: 59.99726065 | X150: -1.440341539 | Y150: 999.368809321612-25.1281283863878i | Z150: -9317753.5402819i | AA150: 23700-2906070.80700424i | AB150: 2000-1410299.068105i | AC150: 16293.3069187038-2409578.89944784i | AD150: 9999.39670827793-70.9018127862015i | AE150: -114.003330326362+85.7286590021573i
A151: 56.501 | B151: 2.42 | C151: 263.0267992 | D151: 56.50096463 | E151: 129.5384349 | H151: 0.016-1.83360671925881i | I151: 0.0005-30.2545108677703i | J151: 0.0142253024893227-1.72883625790962i | L151: 0.181140342811047-0.0191908671184814i | M151: 0.0045+0.00247896918009328i | N151: 0.977146915949847-0.0154109152407072i | O151: -0.1997225783 | P151: -0.9035562502 | Q151: 1652.64612 | R151: 2.42 | S151: 15.36330243 | T151: 1+0.0134855923397075i | U151: 41.13766221 | V151: 130.4419912 | W151: 59.99699645 | X151: -1.508192189 | Y151: 999.307955284247-26.3107799682067i | Z151: -8898385.54934421i | AA151: 23700-2775276.07514239i | AB151: 2000-1346825.15411322i | AC151: 16293.3038667814-2301132.07613569i | AD151: 9999.33850840105-74.242793725255i | AE151: -110.139740667182+86.6391824154842i
A152: 56.258 | B152: 2.44 | C152: 275.4228703 | D152: 56.25755962 | E152: 128.2681932 | H152: 0.016-1.75108082257125i | I152: 0.0005-28.8928335724257i | J152: 0.0142253021388053-1.65102645973201i | L152: 0.180931755505814-0.0200703377448627i | M152: 0.0045+0.00259579939821401i | N152: 0.977253508693587-0.0161422396322283i | O152: -0.1986704511 | P152: -0.9463236432 | Q152: 1730.532932 | R152: 2.44 | S152: 15.36435456 | T152: 1+0.0141211487262842i | U152: 40.89320506 | V152: 129.2145169 | W152: 59.99670679 | X152: -1.579236017 | Y152: 999.24123866815-27.5489312980027i | Z152: -8497892.22718399i | AA152: 23700-2650368.07592365i | AB152: 2000-1286208.0368453i | AC152: 16293.3005204164-2197566.26247433i | AD152: 9999.27469443945-77.7411534284325i | AE152: -106.201622358119+87.3818989867409i
A153: 56.006 | B153: 2.46 | C153: 288.4031503 | D153: 56.00561396 | E153: 127.0130716 | H153: 0.016-1.67226920307986i | I153: 0.0005-27.5924418508178i | J153: 0.0142253017544707-1.57671871003243i | L153: 0.180703639184853-0.0209876321717261i | M153: 0.0045+0.00271813565488323i | N153: 0.977370395281684-0.0169087775663866i | O153: -0.1975167523 | P153: -0.9911339236 | Q153: 1812.090437 | R153: 2.46 | S153: 15.36550826 | T153: 1+0.0147866579625648i | U153: 40.64010571 | V153: 128.0042056 | W153: 59.99638919 | X153: -1.653622845 | Y153: 999.16809558132-28.8451629607629i | Z153: -8115424.07376992i | AA153: =IMSUM(R_3,IMDIV(1,COMPLEX(0,2*PI()*C144*C_2*10^-12))) -> 23700-2531081.86273498i | AB153: =IMSUM(R_2,IMDIV(1,COMPLEX(0,2*PI()*C144*C_1*10^-12))) -> 2000-1228319.13926845i | AC153: =IMDIV(IMPRODUCT(Z144,AA153),IMSUM(Z144,AA153)) -> 16293.2968512017-2098661.78148752i | AD153: =IMDIV(IMPRODUCT(AB153,R_1),IMSUM(AB153,R_1)) -> 9999.20472494536-81.4042975499801i | AE153: =IMDIV(IMPRODUCT(-1,Y144),IMSUM(1,IMDIV(AD153,R_4),IMPRODUCT(IMDIV(AD153,AC153),IMSUM(1,Y144)))) -> -102.203931457411+87.9492741409388i
A154: 55.745 | B154: 2.48 | C154: 301.995172 | D154: 55.7453483 | E154: 125.7754115 | H154: 0.016-1.59700469077324i | I154: 0.0005-26.3505773977585i | J154: 0.0142253013330563-1.50575539211115i | L154: 0.180454227168832-0.021944014945127i | M154: 0.0045+0.00284623744170326i | N154: 0.977498570850729-0.0177122998444081i | O154: -0.1962516695 | P154: -1.03808743 | Q154: 1897.491628 | R154: 2.48 | S154: 15.36677334 | T154: 1+0.0154835316828657i | U154: 40.37857496 | V154: 126.8134989 | W154: 59.99604099 | X154: -1.731509453 | Y154: 999.087908075516-30.2021719854316i | Z154: -7750169.82287014i | AA154: 23700-2417164.41352523i | AB154: 2000-1173035.6712696i | AC154: 16293.2928279898-2004208.8435106i | AD154: 9999.12800627127-85.2399790767101i | AE154: -98.1625902205943+88.3354461766866i
A155: 55.477 | B155: 2.5 | C155: 316.227766 | D155: 55.47701122 | E155: 124.5573955 | H155: 0.016-1.5251276395299i | I155: 0.0005-25.1646060522435i | J155: 0.0142253008709844-1.43798598325663i | L155: 0.180181605178443-0.0229407382168902i | M155: 0.0045+0.00298037647973884i | N155: 0.977639126948246-0.01855467733941i | O155: -0.194864441 | P155: -1.087289834 | Q155: 1986.917653 | R155: 2.5 | S155: 15.36816057 | T155: 1+0.0162132480497793i | U155: 40.10885066 | V155: 125.6446854 | W155: 59.99565922 | X155: -1.813059899 | Y155: 998.999999001-31.6227765700611i | Z155: -7401354.72124809i | AA155: 23700-2308374.09411145i | AB155: 2000-1120240.36920114i | AC155: 16293.2884166278-1914007.10119843i | AD155: 9999.04388754162-89.2563144477669i | AE155: -94.0942428035386+88.5363717113065i
A156: 55.201 | B156: 2.52 | C156: 331.1311215 | D156: 55.20087601 | E156: 123.3610338 | H156: 0.016-1.45648558848743i | I156: 0.0005-24.0320122100427i | J156: 0.0142253003643328-1.37326673546668i | L156: 0.179883701435492-0.0239790316740056i | M156: 0.0045+0.00312083729587398i | N156: 0.977793260914384-0.0194378882098759i | O156: -0.1933432636 | P156: -1.138852484 | Q156: 2080.558197 | R156: 2.52 | S156: 15.36968174 | T156: 1+0.0169773548895545i | U156: 39.83119427 | V156: 124.4998863 | W156: 59.99524066 | X156: -1.898445842 | Y156: 998.903626378954-33.1099209177011i | Z156: -7068238.88530665i | AA156: 23700-2204480.14564039i | AB156: 2000-1069821.24714901i | AC156: 16293.2835796683-1827865.2245618i | AD156: 9998.95165514075-93.461800397167i | AE156: -90.015985903857+88.5499279357687i
A157: 54.917 | B157: 2.54 | C157: 346.7368505 | D157: 54.91723711 | E157: 122.1881523 | H157: 0.016-1.39093293865257i | I157: 0.0005-22.9503934877673i | J157: 0.0142252998088004-1.31146037053968i | L157: 0.179558276602163-0.0250600908739184i | M157: 0.0045+0.00326791782633162i | N157: 0.977962286184582-0.0203640258322746i | O157: -0.1916751918 | P157: -1.192892772 | Q157: 2178.611884 | R157: 2.54 | S157: 15.37134982 | T157: 1+0.017777472975244i | U157: 39.5458873 | V157: 123.3810451 | W157: 59.99478176 | X157: -1.987846881 | Y157: 998.79797724789-34.666680171933i | Z157: -6750115.7316963i | AA157: 23700-2105262.19511802i | AB157: 2000-1021671.35939551i | AC157: 16293.2782760512-1745600.49513091i | AD157: 9998.85052667105-97.8653315477212i | AE157: -85.9450834095829+88.3759669163915i
A158: 54.626 | B158: 2.56 | C158: 363.0780548 | D158: 54.62640663 | E158: 121.0403862 | H158: 0.016-1.32833064406621i | I158: 0.0005-21.9174556270924i | J158: 0.0142252991996713-1.25243578888906i | L158: 0.17920291367802-0.0261850638117823i | M158: 0.0045+0.00342193004863628i | N158: 0.978147643605131-0.0213353075453239i | O158: -0.1898460262 | P158: -1.249534546 | Q158: 2281.286699 | R158: 2.56 | S158: 15.37317898 | T158: 1+0.0186152994645814i | U158: 39.25322765 | V158: 122.2899208 | W158: 59.99427865 | X158: -2.081450907 | Y158: 998.682160936676-36.2962654380783i | Z158: -6446310.47855661i | AA158: 23700-2010509.78796892i | AB158: 2000-975688.573573153i | AC158: 16293.2724607545-1667038.41838497i | AD158: 9998.73964433044-102.47621878547i | AE158: -81.8986750851588+88.0163193751249i
A159: 54.329 | B159: 2.58 | C159: 380.1893963 | D159: 54.32871084 | E159: 119.9191757 | H159: 0.016-1.26854591686831i | I159: 0.0005-20.9310076283271i | J159: 0.0142252985317746-1.19606779146359i | L159: 0.178815008005923-0.0273550355378017i | M159: 0.0045+0.00358320064336025i | N159: 0.978350913863038-0.0223540843120232i | O159: -0.1878401925 | P159: -1.308908544 | Q159: 2388.800429 | R159: 2.58 | S159: 15.37518482 | T159: 1+0.0194926114998798i | U159: 38.95352603 | V159: 121.2280843 | W159: 59.99372706 | X159: -2.179454471 | Y159: 998.555201712951-38.0020288727776i | Z159: -6156178.71421384i | AA159: 23700-1920021.94163385i | AB159: 2000-931775.35402819i | AC159: 16293.2660844132-1592012.35362589i | AD159: 9998.61806765358-107.304208444236i | AE159: -77.8934896872019+87.4747477685745i
A160: 54.024 | B160: 2.6 | C160: 398.1071706 | D160: 54.02448679 | E160: 118.8257655 | H160: 0.016-1.211451945637i | I160: 0.0005-19.9889571030105i | J160: 0.0142252977994404-1.14223681418332i | L160: 0.178391757574665-0.0285710106375122i | M160: 0.0045+0.00375207168705687i | N160: 0.978573831142036-0.0234228514214808i | O160: -0.185640607 | P160: -1.371152881 | Q160: 2501.381125 | R160: 2.6 | S160: 15.3773844 | T160: 1+0.0204112699775894i | U160: 38.64710239 | V160: 120.1969184 | W160: 59.99312234 | X160: -2.282063158 | Y160: 998.416030751534-39.787468820767i | Z160: -5879105.03029722i | AA160: 23700-1833606.71925881i | AB160: 2000-889838.554934421i | AC160: 16293.2590928998-1520363.16051106i | AD160: 9998.48476555608-112.359502330219i | AE160: -73.945572633068+86.7568508878813i
A161: 53.714 | B161: 2.62 | C161: 416.8693835 | D161: 53.71407912 | E161: 117.7612072 | H161: 0.016-1.15692762640458i | I161: 0.0005-19.0893058356755i | J161: 0.0142252969964521-1.09082867432818i | L161: 0.177930153848313-0.0298338933862986i | M161: 0.0045+0.00392890137785075i | N161: 0.978818298128223-0.0245442603709443i | O161: -0.18322853 | P161: -1.43641358 | Q161: 2619.267585 | R161: 2.62 | S161: 15.37979648 | T161: 1+0.0213732234955081i | U161: 38.33428264 | V161: 119.1976208 | W161: 59.99245937 | X161: -2.389491984 | Y161: 998.263477363102-41.6562349732057i | Z161: -5614501.71637515i | AA161: 23700-1751080.82257125i | AB161: 2000-849789.222718399i | AC161: 16293.2514268647-1451938.86149534i | AD161: 9998.33860761509-117.652778616742i | AE161: -70.0700374685363+85.8699244358706i
A162: 53.398 | B162: 2.64 | C162: 436.5158322 | D162: 53.39783709 | E162: 116.7263641 | H162: 0.016-1.10485730577975i | I162: 0.0005-18.2301455453659i | J162: 0.014225296115993-1.04173432834111i | L162: 0.177426973400123-0.0311444653929537i | M162: 0.0045+0.00411406479522404i | N162: 0.979086402501655-0.0257211320899202i | O162: -0.1805834045 | P162: -1.504845156 | Q162: 2742.709863 | R162: 2.64 | S162: 15.3824416 | T162: 1+0.0223805124860188i | U162: 38.01539549 | V162: 118.2312093 | W162: 59.99173256 | X162: -2.501965801 | Y162: 998.096259418756-43.6121335167385i | Z162: -5361807.5133429i | AA162: 23700-1672269.20307986i | AB162: 2000-811542.407376992i | AC162: 16293.2430212325-1386594.31946625i | AD162: 9998.17835451329-123.195213639299i | AE162: -66.2808489770125+84.8227839415156i
A163: 53.076 | B163: 2.66 | C163: 457.0881896 | D163: 53.07611195 | E163: 115.7219182 | H163: 0.016-1.05513053563128i | I163: 0.0005-17.4096538379161i | J163: 0.0142252951505889-0.994849640532058i | L163: 0.176878770682682-0.0325033605571703i | M163: 0.0045+0.00430795469561027i | N163: 0.97938043506449-0.0269564716932036i | O163: -0.1776826786 | P163: -1.576611253 | Q163: 2871.969797 | R163: 2.66 | S163: 15.38534233 | T163: 1+0.0234352735441198i | U163: 37.69076962 | V163: 117.2985294 | W163: 59.99093576 | X163: -2.619719717 | Y163: 997.912972901366-45.6591322365345i | Z163: -5120486.4229165i | AA163: 23700-1597004.69077325i | AB163: 2000-775016.982287014i | AC163: 16293.2338046501-1324190.92988877i | AD163: 9998.00264756666-128.998504620865i | AE163: -62.5906439661349+83.6255578173465i
A164: 52.749 | B164: 2.68 | C164: 478.6300923 | D164: 52.74925451 | E164: 114.7483789 | H164: 0.016-1.0076418388127i | I164: 0.0005-16.6260903404095i | J164: 0.0142252940920446-0.950075162192227i | L164: 0.176281872325491-0.0339110371843819i | M164: 0.0045+0.00451098234548343i | N164: 0.979702909672127-0.0282534849788295i | O164: -0.1745016115 | P164: -1.651885361 | Q164: 3007.321564 | R164: 2.68 | S164: 15.3885234 | T164: 1+0.0245397439594299i | U164: 37.36073111 | V164: 116.4002643 | W164: 59.99006226 | X164: -2.742999527 | Y164: 997.71208050947-47.8013655296888i | Z164: -4890026.57070869i | AA164: 23700-1525127.6395299i | AB164: 2000-740135.472124809i | AC164: 16293.2236988806-1264596.32680643i | AD164: 9997.8099972487-135.074893356991i | AE164: -59.0105937125201+82.28945927294i
A165: 52.418 | B165: 2.7 | C165: 501.1872336 | D165: 52.41761318 | E165: 113.8060934 | H165: 0.016-0.962290485431132i | I165: 0.0005-15.8777930096137i | J165: 0.0142252929313741-0.907315920650007i | L165: 0.175632373416134-0.0353677471304155i | M165: 0.0045+0.00472357839370931i | N165: 0.980056585151327-0.0296155969210161i | O165: -0.1710130587 | P165: -1.730851597 | Q165: 3149.052262 | R165: 2.7 | S165: 15.39201195 | T165: 1+0.0256962664617786i | U165: 37.02560123 | V165: 115.536945 | W165: 59.98910468 | X165: -2.872062161 | Y165: 997.491899234461-50.0431392775303i | Z165: -4669939.12047463i | AA165: 23700-1456485.58848743i | AB165: 2000-706823.888530665i | AC165: 16293.212618139-1207684.10207545i | AD165: 9997.59877061569-141.437190889525i | AE165: -55.550309907049+80.8265461399069i
A166: 52.082 | B166: 2.72 | C166: 524.8074602 | D166: 52.08153226 | E166: 112.8952572 | H166: 0.016-0.918980279185705i | I166: 0.0005-15.1631746065641i | J166: 0.0142252916587242-0.866481217821238i | L166: 0.17492613629054-0.0368735018903678i | M166: 0.0045+0.00494619378500943i | N166: 0.980444489408814-0.0310464724480917i | O166: -0.1671872378 | P166: -1.813705581 | Q166: 3297.462523 | R166: 2.72 | S166: 15.39583777 | T166: 1+0.0269072941904513i | U166: 36.68569449 | V166: 114.7089627 | W166: 59.98805497 | X166: -3.007176145 | Y166: 997.250586826417-52.3889355163774i | Z166: -4459757.23722473i | AA166: 23700-1390932.93865257i | AB166: 2000-675011.573169629i | AC166: 16293.2004683646-1153333.53723606i | AD166: 9997.36717752851-148.098803196698i | AE166: -52.217793879768+79.2494774648121i
A167: 51.741 | B167: 2.74 | C167: 549.5408739 | D167: 51.74135061 | E167: 112.0159262 | H167: 0.016-0.877619353322252i | I167: 0.0005-14.4807193298172i | J167: 0.0142252902632917-0.827484437826361i | L167: 0.174158792430416-0.03842803560358i | M167: 0.0045+0.0051793007164753i | N167: 0.980869945955491-0.0325500398422436i | O167: -0.1629914691 | P167: -1.900655405 | Q167: 3452.867144 | R167: 2.74 | S167: 15.40003354 | T167: 1+0.0281753958976257i | U167: 36.34131707 | V167: 113.9165816 | W167: 59.98690427 | X167: -3.148622065 | Y167: 996.986127058709-54.8434168359972i | Z167: -4259035.09700506i | AA167: 23700-1328330.64406621i | AB167: 2000-644631.047855661i | AC167: 16293.187146423-1101429.34745242i | AD167: 9997.11325555711-155.073757925896i | AE167: -49.0194270313305+77.5712750538161i
A168: 51.397 | B168: 2.76 | C168: 575.4399373 | D168: 51.39740058 | E168: 111.1680284 | H168: 0.016-0.83811997577168i | I168: 0.0005-13.8289796002327i | J168: 0.0142252887332308-0.79024286326661i | L168: 0.173325748139352-0.0400307650222991i | M168: 0.0045+0.00542339363916177i | N168: 0.981336603095365-0.0341305171529785i | O168: -0.1583898924 | P168: -1.991922715 | Q168: 3615.595759 | R168: 2.76 | S168: 15.40463512 | T168: 1+0.02950326139704i | U168: 35.99276546 | V168: 113.1599511 | W168: 59.9856429 | X168: -3.296693057 | Y168: 996.696313696167-57.4114304232932i | Z168: -4067346.94124492i | AA168: 23700-1268545.91686831i | AB168: 2000-615617.871421384i | AC168: 16293.1725392293-1051861.4369781i | AD168: 9996.83485344273-162.376732193484i | AE168: -45.9599988595782+75.8050971058441i
A169: 51.05 | B169: 2.78 | C169: 602.5595861 | D169: 51.05000737 | E169: 110.3513757 | H169: 0.016-0.800398363058419i | I169: 0.0005-13.2065729904639i | J169: 0.0142252870555528-0.754677499769214i | L169: 0.172422194740617-0.0416807465884188i | M169: 0.0045+0.00567899030688395i | N169: 0.9818484660549-0.0357924420810823i | O169: -0.1533431539 | P169: -2.087743929 | Q169: 3785.993538 | R169: 2.78 | S169: 15.40968185 | T169: 1+0.0308937072694487i | U169: 35.64032552 | V169: 112.4391196 | W169: 59.98426026 | X169: -3.451695293 | Y169: 996.378733066524-60.0980116553746i | Z169: -3884286.17366586i | AA169: 23700-1211451.945637i | AB169: 2000-587910.503029722i | AC169: 16293.1565227901-1004524.66562812i | AD169: 9996.52961298162-170.023081473552i | AE169: -43.0427678089988+73.9640297668008i
A170: 50.699 | B170: 2.8 | C170: 630.9573445 | D170: 50.69948862 | E170: 109.5656757 | H170: 0.016-0.764374502584481i | I170: 0.0005-12.612179292644i | J170: 0.0142252852160158-0.720712908429823i | L170: 0.171443124105241-0.0433766308832395i | M170: 0.0045+0.00594663287444252i | N170: 0.982409932357922-0.0375407058664553i | O170: -0.1478080624 | P170: -2.188371583 | Q170: 3964.421916 | R170: 2.8 | S170: 15.41521695 | T170: 1+0.0323496828369673i | U170: 35.28427167 | V170: 111.7540472 | W170: 59.98274473 | X170: -3.613948485 | Y170: 996.030745129959-62.9083871309798i | Z170: -3709464.49783647i | AA170: 23700-1156927.62640458i | AB170: 2000-561450.171637515i | AC170: 16293.1389611499-959318.625762559i | AD170: 9996.19494918151-178.028869594346i | AE170: -40.2695494117682+72.0609009967616i
A171: 50.346 | B171: 2.82 | C171: 660.693448 | D171: 50.34615421 | E171: 108.8105422 | H171: 0.016-0.729971982912008i | I171: 0.0005-12.0445377180481i | J171: 0.0142252831990043-0.688277045796443i | L171: 0.170383350373472-0.0451166148618407i | M171: 0.0045+0.00622688904760675i | N171: 0.983025830783744-0.0393805918038725i | O171: -0.1417372119 | P171: -2.294075868 | Q171: 4151.259365 | R171: 2.82 | S171: 15.4212878 | T171: 1+0.0338742764189807i | U171: 34.92486642 | V171: 111.1046181 | W171: 59.9810836 | X171: -3.783786394 | Y171: 995.649462937203-65.8479770120018i | Z171: -3542511.09354356i | AA171: 23700-1104857.30577975i | AB171: 2000-536180.75133429i | AC171: 16293.119705238-916147.42930846i | AD171: 9995.82802852822-186.410899857207i | AE171: -37.6408258207381+70.1081196779027i
A172: 49.99 | B172: 2.84 | C172: 691.8309709 | D172: 49.99030649 | E172: 108.0855064 | H172: 0.016-0.697117831684332i | I172: 0.0005-11.5024442227915i | J172: 0.0142252809873957-0.657301111055599i | L172: 0.169237538769719-0.0468983924580134i | M172: 0.0045+0.0065203532872945i | N172: 0.983701464282011-0.0413178191182709i | O172: -0.1350785644 | P172: -2.405146337 | Q172: 4346.902192 | R172: 2.84 | S172: 15.42794644 | T172: 1+0.0354707218828821i | U172: 34.56236005 | V172: 110.4906528 | W172: 59.97926293 | X172: -3.961557338 | Y172: 995.231730362938-68.9223965273935i | Z172: -3383071.83023279i | AA172: 23700-1055130.53563128i | AB172: 2000-512048.64229165i | AC172: 16293.0985916026-874919.504368318i | AD172: 9995.42574518512-195.186747288152i | AE172: -35.1558708179894+68.1175414989616i
A173: 49.632 | B173: 2.86 | C173: 724.4359601 | D173: 49.63224055 | E173: 107.3900257 | H173: 0.016-0.665742360841877i | I173: 0.0005-10.9847489538909i | J173: 0.0142252785624159-0.62771940009662i | L173: 0.168000242422995-0.0487191043483538i | M173: 0.0045+0.0068276480705036i | N173: 0.984442657257171-0.0433585930590979i | O173: -0.1277749925 | P173: -2.52189385 | Q173: 4551.76538 | R173: 2.86 | S173: 15.43525002 | T173: 1+0.0371424055035396i | U173: 34.19699054 | V173: 109.9119196 | W173: 59.97726748 | X173: -4.147624712 | Y173: 994.774097998422-72.1374564697495i | Z173: -3230808.51585028i | AA173: 23700-1007641.8388127i | AB173: 2000-489002.657070869i | AC173: 16293.0754410247-835547.400983794i | AD173: 9994.98469493191-204.374792026333i | AE173: -32.8128846588256+66.1003619053302i
A174: 49.272 | B174: 2.88 | C174: 758.577575 | D174: 49.27224483 | E174: 106.7234927 | H174: 0.016-0.6357790188044i | I174: 0.0005-10.4903538102726i | J174: 0.0142252759034795-0.599469166144391i | L174: 0.166665948082545-0.0505752878940375i | M174: 0.0045+0.00714942521066896i | N174: 0.985255807678533-0.045509662225816i | O174: -0.1197637739 | P174: -2.644652766 | Q174: 4766.283474 | R174: 2.88 | S174: 15.44326123 | T174: 1+0.0388928731460392i | U174: 33.8289836 | V174: 109.3681455 | W174: 59.97508057 | X174: -4.342367506 | Y174: 994.272797085749-75.4991624901458i | Z174: -3085398.17949194i | AA174: 23700-962290.485431132i | AB174: 2000-466993.912047463i | AC174: 16293.0500569965-797947.605642574i | AD174: 9994.50114663186-213.994253846773i | AE174: -30.6091336115056+64.0670353512417i
A175: 48.911 | B175: 2.9 | C175: 794.3282347 | D175: 48.91060188 | E175: 106.0852429 | H175: 0.016-0.607164249306185i | I175: 0.0005-10.018210113552i | J175: 0.0142252729880148-0.572490486665021i | L175: 0.16522913155175-0.0524628285328258i | M175: 0.0045+0.00748636724024629i | N175: 0.986147944518683-0.0477783843190872i | O175: -0.1109760364 | P175: -2.773783426 | Q175: 4990.911493 | R175: 2.9 | S175: 15.45204897 | T175: 1+0.0407258377869398i | U175: 33.45855291 | V175: 108.8590263 | W175: 59.97268393 | X175: -4.546180809 | Y175: 993.723711376252-79.0137129690876i | Z175: -2946532.38633883i | AA175: 23700-918980.279185705i | AB175: 2000-445975.723722473i | AC175: 16293.0222240537-762040.364134995i | AD175: 9993.97101099756-224.065227806334i | AE175: -28.5410897063216+62.0272192570035i
A176: 48.548 | B176: 2.92 | C176: 831.7637711 | D176: 48.54758926 | E176: 105.4745608 | H176: 0.016-0.579837356584677i | I176: 0.0005-9.56731638364718i | J176: 0.0142252697912728-0.54672613626213i | L176: 0.163684323541494-0.0543769141660348i | M176: 0.0045+0.00783918885845492i | N176: 0.987126791073384-0.0501728017309948i | O176: -0.1013361447 | P176: -2.909674983 | Q176: 5226.125906 | R176: 2.92 | S176: 15.46168886 | T176: 1+0.0426451873899948i | U176: 33.0859004 | V176: 108.3842358 | W176: 59.97005759 | X176: -4.759476321 | Y176: 993.122346797765-82.6874952104196i | Z176: -2813916.58342563i | AA176: 23700-877619.353322252i | AB176: 2000-425903.509700506i | AC176: 16292.9917059483-727749.512384582i | AD176: 9993.38980640502-234.608720992048i | AE176: -26.6045669468472+59.989740464597i
A177: 48.183 | B177: 2.94 | C177: 870.96359 | D177: 48.1834807 | E177: 104.890686 | H177: 0.016-0.553740376636634i | I177: 0.0005-9.13671621450447i | J177: 0.0142252662861167-0.522121465294101i | L177: 0.162026186456093-0.0563119943662843i | M177: 0.0045+0.00820863844725069i | N177: 0.988200834769743-0.0527017286508462i | O177: -0.09076102474 | P177: -3.052748622 | Q177: 5472.425632 | R177: 2.94 | S177: 15.47226398 | T177: 1+0.0446549931530437i | U177: 32.71121671 | V177: 107.9434346 | W177: 59.96717969 | X177: -4.982682842 | Y177: 992.463798820397-86.5270796705416i | Z177: -2687269.47485425i | AA177: 23700-838119.975771679i | AB177: 2000-406734.694124492i | AC177: 16292.9582436425-695002.314893817i | AD177: 9992.75262148361-245.646690339188i | AE177: -24.7948510028579+57.9625815876655i
A178: 47.819 | B178: 2.96 | C178: 912.0108394 | D178: 47.81854726 | E178: 104.3328164 | H178: 0.016-0.528817954268702i | I178: 0.0005-8.72549624543359i | J178: 0.0142252624427915-0.498624283954848i | L178: 0.160249602359838-0.0582617465084075i | M178: 0.0045+0.0085954996587444i | N178: 0.989379404125432-0.0553748516807659i | O178: -0.07915941957 | P178: -3.203461234 | Q178: 5730.333106 | R178: 2.96 | S178: 15.48386559 | T178: 1+0.0467595181435695i | U178: 32.33468167 | V178: 107.5362776 | W178: 59.96402632 | X178: -5.216246745 | Y178: 991.742717418683-90.5392118969898i | Z178: -2566322.42512753i | AA178: 23700-800398.363058419i | AB178: 2000-388428.617366586i | AC178: 16292.9215531118-663729.310462301i | AD178: 9992.05407418589-257.202081472653i | AE178: -23.1068201514093+55.9528844439832i
A179: 47.453 | B179: 2.98 | C179: 954.992586 | D179: 47.45305879 | E179: 103.8001119 | H179: 0.016-0.505017225681633i | I179: 0.0005-8.33278422374696i | J179: 0.0142252582286716-0.476184751572263i | L179: 0.158349772022061-0.0602190511803935i | M179: 0.0045+0.00900059307743302i | N179: 0.990672753578882-0.058202846339785i | O179: -0.06643106696 | P179: -3.362309629 | Q179: 6000.395385 | R179: 2.98 | S179: 15.49659394 | T179: 1+0.0489632263412357i | U179: 31.95646484 | V179: 107.1624215 | W179: 59.96057136 | X179: -5.460632424 | Y179: 990.953269540421-94.730801808212i | Z179: -2450818.88933734i | AA179: 23700-764374.502584481i | AB179: 2000-370946.449783647i | AC179: 16292.8813229347-633864.164850159i | AD179: 9991.28826701538-269.298868509048i | AE179: -21.5350559248652+53.9669677101718i
A180: 47.087 | B180: 3 | C180: 1000 | D180: 47.08728538 | E180: 103.2916957 | H180: 0.016-0.482287706339075i | I180: 0.0005-7.95774715459475i | J180: 0.0142252536079841-0.454755270889447i | L180: 0.156322324497539-0.0621759794413156i | M180: 0.0045+0.00942477796076943i | N180: 0.992092156966335-0.0611975123022514i | O180: -0.05246579267 | P180: -3.529835359 | Q180: 6283.185307 | R180: 3 | S180: 15.51055922 | T180: 1+0.0512707921065857i | U180: 31.57672617 | V180: 106.821531 | W180: 59.95678622 | X180: -5.716322715 | Y180: 990.08909901-99.108909900001i | Z180: -2340513.86899845i | AA180: 23700-729971.982912008i | AB180: 2000-354251.109354356i | AC180: 16292.8372116511-605343.530074154i | AD180: 9990.44873806317-281.962094737841i | AE180: -20.0739425389056+52.0103560168881i
A181: 46.721 | B181: 3.02 | C181: 1047.128548 | D181: 46.72149906 | E181: 102.8066543 | H181: 0.016-0.4605811838831i | I181: 0.0005-7.59958953407113i | J181: 0.0142252485415044-0.434290387104542i | L181: 0.154163436167317-0.0641237946324944i | M181: 0.0045+0.00986895406176261i | N181: 0.99365001047292-0.0643719307856764i | O181: -0.03714250907 | P181: -3.706630275 | Q181: 6579.302708 | R181: 3.02 | S181: 15.5258825 | T181: 1+0.0536871100959886i | U181: 31.19561657 | V181: 106.5132846 | W181: 59.95263968 | X181: -5.983819269 | Y181: 989.143283817701-103.68072991349i | Z181: -2235173.39237387i | AA181: 23700-697117.831684332i | AB181: 2000-338307.183023279i | AC181: 16292.788844865-578106.910037989i | AD181: 9989.5284074749-295.217914077888i | AE181: -18.7177546967894+50.0878178754355i
A182: 46.356 | B182: 3.04 | C182: 1096.478196 | D182: 46.35597555 | E182: 102.3440367 | H182: 0.016-0.439851615869336i | I182: 0.0005-7.25755166184406i | J182: 0.0142252429862243-0.414746691455007i | L182: 0.151869957548873-0.0660529714868091i | M182: 0.0045+0.0103340635374745i | N182: 0.995359945926212-0.0677406481995185i | O182: -0.02032810922 | P182: -3.893342924 | Q182: 6889.375692 | R182: 3.04 | S182: 15.5426969 | T182: 1+0.0562173056438613i | U182: 30.81327865 | V182: 106.2373797 | W182: 59.94809765 | X182: -6.263642875 | Y182: 988.108290777628-108.453567444894i | Z182: -2134574.01818943i | AA182: 23700-665742.360841877i | AB182: 2000-323080.851585028i | AC182: 16292.7358120686-552096.532211894i | AD182: 9988.51951893787-309.093633179845i | AE182: -17.4607337941246+48.2034100637857i
A183: 45.991 | B183: 3.06 | C183: 1148.153621 | D183: 45.99099616 | E183: 101.9028512 | H183: 0.016-0.420055032104765i | I183: 0.0005-6.93090802972859i | J183: 0.0142252368949859-0.39608272914181i | L183: 0.149439545499841-0.0679532351875606i | M183: 0.0045+0.0108210929474614i | N183: 0.997236955323957-0.0713198910212462i | O183: -0.001876245052 | P183: -4.090685948 | Q183: 7214.061965 | R183: 3.06 | S183: 15.56114876 | T183: 1+0.0588667456341901i | U183: 30.42984739 | V183: 105.9935372 | W183: 59.94312285 | X183: -6.556333729 | Y183: 986.975927577008-113.434813918416i | Z183: -2038502.36168489i | AA183: 23700-635779.0188044i | AB183: 2000-308539.817949194i | AC183: 16292.6776631606-527257.225089188i | AD183: 9987.41357574529-323.617754015092i | AE183: -16.2971528831779+46.360526375022i
A184: 45.627 | B184: 3.08 | C184: 1202.264435 | D184: 45.62684985 | E184: 101.4820609 | H184: 0.016-0.401149441381047i | I184: 0.0005-6.61896578278725i | J184: 0.014225230216082-0.378258911398215i | L184: 0.146870797711969-0.0698136227716897i | M184: 0.0045+0.0113310753463991i | N184: 0.999297527480981-0.0751278179193236i | O184: 0.01837402276 | P184: -4.299444651 | Q184: 7554.050231 | R184: 3.08 | S184: 15.58139903 | T184: 1+0.0616410498844112i | U184: 30.04545082 | V184: 105.7815055 | W184: 59.93767465 | X184: -6.862451615 | Y184: 985.737292290266-118.63191528139i | Z184: -1946754.64199625i | AA184: 23700-607164.249306185i | AB184: 2000-294653.238633883i | AC184: 16292.6139046278-503536.301159969i | AD184: 9986.20127095858-338.820016757225i | AE184: -15.221371004314+44.5619489227631i
A185: 45.264 | B185: 3.1 | C185: 1258.925412 | D185: 45.26383545 | E185: 101.0805774 | H185: 0.016-0.38309474240554i | I185: 0.0005-6.32106324969141i | J185: 0.0142252228928169-0.36123743151672i | L185: 0.144163385659356-0.0716225688255917i | M185: 0.0045+0.0118650924753302i | N185: 1.00155979762605-0.0791848164453479i | O185: 0.04059971702 | P185: -4.520486954 | Q185: 7910.06165 | R185: 3.1 | S185: 15.60362472 | T185: 1+0.0645461030657965i | U185: 29.66021072 | V185: 105.6010644 | W185: 59.93170865 | X185: -7.182576008 | Y185: 984.382720494514-124.052334715346i | Z185: -1859136.24990924i | AA185: 23700-579837.356584677i | AB185: 2000-281391.658342563i | AC185: 16292.5439953603-480883.445153667i | AD185: 9984.87241115199-354.731442722108i | AE185: -14.2278776641587+42.8099004892284i
A186: 44.902 | B186: 3.12 | C186: 1318.256739 | D186: 44.90226398 | E186: 100.6972526 | H186: 0.016-0.365852638741082i | I186: 0.0005-6.03656853922785i | J186: 0.0142252148630255-0.344982184655936i | L186: 0.141318181475975-0.0733680167663302i | M186: 0.0045+0.0124242770561822i | N186: 1.00404371065224-0.0835138532346563i | O186: 0.06499559326 | P186: -4.754774985 | Q186: 8282.851371 | R186: 3.12 | S186: 15.6280206 | T186: 1+0.0675880671856312i | U186: 29.27424338 | V186: 105.4520276 | W186: 59.92517647 | X186: -7.517306059 | Y186: 982.901730200785-129.703508589159i | Z186: -1775461.33506702i | AA186: 23700-553740.376636634i | AB186: 2000-268726.947485425i | AC186: 16292.4673420625-459250.607313409i | AD186: 9983.41583318406-371.384377086416i | AE186: -13.3113283467654+41.10609667985i
A187: 44.542 | B187: 3.14 | C187: 1380.384265 | D187: 44.54246121 | E187: 100.3308673 | H187: 0.016-0.349386557574112i | I187: 0.0005-5.76487819997284i | J187: 0.0142252060585451-0.329458691257376i | L187: 0.13833737365153-0.0750375561302926i | M187: 0.0045+0.0130098151944222i | N187: 1.00677119848632-0.0881408886696676i | O187: 0.09177596252 | P187: -5.003378619 | Q187: 8673.21013 | R187: 3.14 | S187: 15.65480097 | T187: 1+0.0707733946576566i | U187: 28.88766024 | V187: 105.3342459 | W187: 59.91802535 | X187: -7.867260463 | Y187: 981.282964910149-135.592794812314i | Z187: -1695552.41175672i | AA187: 23700-528817.954268702i | AB187: 2000-256632.242512753i | AC187: 16292.3832942217-438591.901475794i | AD187: 9981.81931339985-388.81253105147i | AE187: -12.4665719970294+39.4517969052504i
A188: 44.185 | B188: 3.16 | C188: 1445.439771 | D188: 44.18477038 | E188: 99.98011828 | H188: 0.016-0.333661572138829i | I188: 0.0005-5.50541594029067i | J188: 0.0142251964046373-0.314634023909681i | L188: 0.135224566017714-0.0766185852158552i | M188: 0.0045+0.0136229488949458i | N188: 1.00976637163997-0.093095369480628i | O188: 0.121176705 | P188: -5.267491334 | Q188: 9081.96593 | R188: 3.16 | S188: 15.68420171 | T188: 1+0.0741088419885053i | U188: 28.50056867 | V188: 105.2476096 | W188: 59.91019781 | X188: -8.233077177 | Y188: 979.514135217891-141.727412679231i | Z188: -1619239.98243843i | AA188: 23700-505017.225681633i | AB188: 2000-245081.888933734i | AC188: 16292.2911385935-418863.507739948i | AD188: 9980.06946862557-407.051023058177i | AE188: -11.6886714259703+37.8478534418258i
A189: 43.83 | B189: 3.18 | C189: 1513.561248 | D189: 43.8295551 | E189: 99.64360142 | H189: 0.016-0.318644327632838i | I189: 0.0005-5.25763140594184i | J189: 0.0142251858193534-0.300476737505149i | L189: 0.131984854317637-0.0780984971777568i | M189: 0.0045+0.0142649786965362i | N189: 1.01305572435752-0.0984108159225933i | O189: 0.1534574933 | P189: -5.548448836 | Q189: 9509.985798 | R189: 3.18 | S189: 15.7164825 | T189: 1+0.0776014841091571i | U189: 28.1130726 | V189: 105.1920503 | W189: 59.90163128 | X189: -8.615412963 | Y189: 977.581959525263-148.114373232155i | Z189: -1546362.17821818i | AA189: 23700-482287.706339075i | AB189: 2000-234051.386899845i | AC189: 16292.1900931547-400023.579519311i | AD189: 9978.15164827348-426.136418588972i | AE189: -10.9729175655149+36.2947580236217i
A190: 43.477 | B190: 3.2 | C190: 1584.893192 | D190: 43.47720254 | E190: 99.31979155 | H190: 0.016-0.304302970467146i | I190: 0.0005-5.02099901270791i | J190: 0.0142251742128391-0.286956802540431i | L190: 0.128624874773047-0.0794648863031444i | M190: 0.0045+0.014937266430481i | N190: 1.0166683517672-0.10412552415448i | O190: 0.1889042447 | P190: -5.847751011 | Q190: 9958.17762 | R190: 3.2 | S190: 15.75192925 | T190: 1+0.0812587293818166i | U190: 27.72527329 | V190: 105.1675426 | W190: 59.89225764 | X190: -9.01494274 | Y190: 975.472104579362-154.76039911362i | Z190: -1476764.41550233i | AA190: 23700-460581.1838831i | AB190: 2000-223517.339237387i | AC190: 16292.079300475-382032.154779067i | AD190: 9976.04981683114-446.106768012632i | AE190: -10.3148384549908+34.7926855901942i
A191: 43.128 | B191: 3.22 | C191: 1659.586907 | D191: 43.12812682 | E191: 99.00701798 | H191: 0.016-0.290607080700424i | I191: 0.0005-4.79501683155699i | J191: 0.0142251614865719-0.274045541419925i | L191: 0.125152819538254-0.0807057697903432i | M191: 0.0045+0.015641238109199i | N191: 1.02063617590429-0.110283409487116i | O191: 0.2278318213 | P191: -6.167087871 | Q191: 10427.49207 | R191: 3.22 | S191: 15.79085683 | T191: 1+0.0850883353140427i | U191: 27.33727 | V191: 105.1741059 | W191: 59.88200284 | X191: -9.432358708 | Y191: 973.169126750452-161.671832833923i | Z191: -1410299.068105i | AA191: 23700-439851.615869336i | AB191: 2000-213457.401818943i | AC191: 16291.9578204492-364851.071270923i | AD191: 9973.7464259647-467.00164183639i | AE191: -9.71020378030431+33.3415349587538i
A192: 42.783 | B192: 3.24 | C192: 1737.800829 | D192: 42.78277268 | E192: 98.70343496 | H192: 0.016-0.277527607514238i | I192: 0.0005-4.57920552398492i | J192: 0.0142251475325244-0.261715567626721i | L192: 0.121578414785748-0.0818098189993545i | M192: 0.0045+0.016378386951004i | N192: 1.02499417515824-0.116935022561846i | O192: 0.2705869969 | P192: -6.508370337 | Q192: 10918.92463 | R192: 3.24 | S192: 15.833612 | T192: 1+0.0890984250134616i | U192: 26.94916068 | V192: 105.2118053 | W192: 59.87078645 | X192: -9.868369211 | Y192: 970.656415174924-168.854532349815i | Z192: -1346825.15411321i | AA192: 23700-420055.032104765i | AB192: 2000-203850.236168489i | AC192: 16291.8246223318-348443.88558538i | AD192: 9971.22227542254-488.862162625618i | AE192: -9.15502571588894+31.940966306018i
A193: 42.442 | B193: 3.26 | C193: 1819.700859 | D193: 42.44161944 | E193: 98.40698599 | H193: 0.016-0.265036807592364i | I193: 0.0005-4.37310732527401i | J193: 0.0142251322322482-0.249940727632114i | L193: 0.117912858406572-0.0827665929598205i | M193: 0.0045+0.0171502765474206i | N193: 1.02978060823679-0.124138778656163i | O193: 0.3175517055 | P193: -6.873766876 | Q193: 11433.5177 | R193: 3.26 | S193: 15.88057671 | T193: 1+0.093297504417968i | U193: 26.56104272 | V193: 105.2807529 | W193: 59.85852112 | X193: -10.32369731 | Y193: 967.916138143385-176.313752844034i | Z193: -1286208.0368453i | AA193: 23700-401149.441381047i | AB193: 2000-194675.464199625i | AC193: 16291.6785760037-332775.795849856i | AD193: 9968.45636188392-511.731032732778i | AE193: -8.64555674394167+30.5904354385118i
A194: 42.105 | B194: 3.28 | C194: 1905.460718 | D194: 42.10518523 | E194: 98.11536081 | H194: 0.016-0.253108186273498i | I194: 0.0005-4.17628507351271i | J194: 0.0142251154558681-0.238696045420436i | L194: 0.11416871589299-0.0835667660239779i | M194: 0.0045+0.0179585441797719i | N194: 1.03503721860014-0.131962450686426i | O194: 0.3691465822 | P194: -7.265747277 | Q194: 11972.36279 | R194: 3.28 | S194: 15.93217159 | T194: 1+0.0976944803379591i | U194: 26.17301364 | V194: 105.3811081 | W194: 59.84511215 | X194: -10.79907903 | Y194: 964.92919439872-184.054013619147i | Z194: -1228319.13926844i | AA194: 23700-383094.74240554i | AB194: 2000-185913.624990924i | AC194: 16291.5184423988-317813.567908629i | AD194: 9965.42571485857-535.652556842805i | AE194: -8.17828504895085+29.2892249023275i
A195: 41.774 | B195: 3.3 | C195: 1995.262315 | D195: 41.77403157 | E195: 97.82594341 | H195: 0.016-0.241716441352523i | I195: 0.0005-3.98832128231663i | J195: 0.0142250970609802-0.227957669511562i | L195: 0.110359774828135-0.0842023410471958i | M195: 0.0045+0.0188049042920725i | N195: 1.04080939770088-0.140484989728207i | O195: 0.4258347956 | P195: -7.68713515 | Q195: 12536.60286 | R195: 3.3 | S195: 15.9888598 | T195: 1+0.102298679348874i | U195: 25.78517177 | V195: 105.5130786 | W195: 59.83045693 | X195: -11.29526121 | Y195: 961.675171328884-192.078949082931i | Z195: -1173035.6712696i | AA195: 23700-365852.638741082i | AB195: 2000-177546.133506702i | AC195: 16291.3428630108-303525.464828043i | AD195: 9962.10521870913-560.67265818972i | AE195: -7.74992801084427+28.0364720375973i
A196: 41.449 | B196: 3.32 | C196: 2089.296131 | D196: 41.44876821 | E196: 97.53574917 | H196: 0.016-0.230837409411145i | I196: 0.0005-3.80881725528388i | J196: 0.0142250768914434-0.21770282236868i | L196: 0.106500860427132-0.0846668394537799i | M196: 0.0045+0.019691152127594i | N196: 1.04714627408619-0.149798753811378i | O196: 0.4881261581 | P196: -8.141171139 | Q196: 13127.43475 | R196: 3.32 | S196: 16.05115117 | T196: 1+0.107119867574111i | U196: 25.39761705 | V196: 105.6769203 | W196: 59.81444445 | X196: -11.81299898 | Y196: 958.132312393055-200.39114291687i | Z196: -1120240.36920114i | AA196: 23700-349386.557574112i | AB196: 2000-169555.241175672i | AC196: 16291.1503483898-289881.179577404i | AD196: 9958.4674198409-586.838887127055i | AE196: -7.3574242491884+26.8311941219047i
A197: 41.13 | B197: 3.34 | C197: 2187.761624 | D197: 41.13005818 | E197: 97.24134853 | H197: 0.016-0.220448014564038i | I197: 0.0005-3.63739224030663i | J197: 0.014225054776054-0.207909752084053i | L197: 0.102607616617707-0.0849554600529564i | M197: 0.0045+0.0206191675368169i | N197: 1.05410067870501-0.160012247378275i | O197: 0.5565814713 | P197: -8.631589345 | Q197: 13746.11169 | R197: 3.34 | S197: 16.11960648 | T197: 1+0.112168271400284i | U197: 25.0104517 | V197: 105.8729379 | W197: 59.7969547 | X197: -12.35305276 | Y197: 954.277496504705-208.991944697089i | Z197: -1069821.24714901i | AA197: 23700-333661.572138829i | AB197: 2000-161923.998243843i | AC197: 16290.9392655349-276851.770742783i | AD197: 9954.48231808487-614.200420540814i | AE197: -6.9979246050085+25.6723107732587i
A198: 40.819 | B198: 3.36 | C198: 2290.867653 | D198: 40.81862308 | E198: 96.93877404 | H198: 0.016-0.210526219511802i | I198: 0.0005-3.47368262194473i | J198: 0.0142250305270935-0.198557686240273i | L198: 0.0986962590593547-0.085065199516737i | M198: 0.0045+0.0215909189648453i | N198: 1.06172891195555-0.17125350134108i | O198: 0.6318170259 | P198: -9.162710099 | Q198: 14393.94598 | R198: 3.36 | S198: 16.19484203 | T198: 1+0.117454599168758i | U198: 24.62378104 | V198: 106.1014841 | W198: 59.77785818 | X198: -12.91618472 | Y198: 950.08623250601-217.881268492057i | Z198: -1021671.35939551i | AA198: 23700-318644.327632838i | AB198: 2000-154636.217821818i | AC198: 16290.7078240739-264409.601137341i | AD198: 9950.11714129353-642.808050375748i | AE198: -6.66878238670432+24.5586637994288i
A199: 40.515 | B199: 3.38 | C199: 2398.832919 | D199: 40.51524834 | E199: 96.6234069 | H199: 0.016-0.201050978796892i | I199: 0.0005-3.31734115014872i | J199: 0.0142250039387355-0.189626787849124i | L199: 0.0947833081218993-0.0849949289747192i | M199: 0.0045+0.0226084676267431i | N199: 1.07009020109313-0.183674258546914i | O199: 0.7145091136 | P199: -9.73955308 | Q199: 15072.31175 | R199: 3.38 | S199: 16.27753412 | T199: 1+0.122990063889482i | U199: 24.23771422 | V199: 106.36296 | W199: 59.75701532 | X199: -13.50315472 | Y199: 945.532672295965-227.057373309302i | Z199: -975688.573573153i | AA199: 23700-304302.970467146i | AB199: 2000-147676.441550233i | AC199: 16290.4540611164-252528.279177919i | AD199: 9945.33610217799-672.714159301729i | AE199: -6.36754315253044+23.4890346884857i
A200: 40.221 | B200: 3.4 | C200: 2511.886432 | D200: 40.22078833 | E200: 96.28983786 | H200: 0.016-0.192002194163385i | I200: 0.0005-3.16803620369585i | J200: 0.014224974785299-0.181098113274625i | L200: 0.0908853110361435-0.0847454231281331i | M200: 0.0045+0.0236739718796473i | N200: 1.07924568151327-0.197455173127444i | O200: 0.8053983092 | P200: -10.36797581 | Q200: 15782.64792 | R200: 3.4 | S200: 16.36842332 | T200: 1+0.128786407025281i | U200: 23.85236502 | V200: 106.6578137 | W200: 59.73427597 | X200: -14.11471567 | Y200: 940.589646606935-236.516625720338i | Z200: -931775.35402819i | AA200: 23700-290607.080700424i | AB200: 2000-141029.9068105i | AC200: 16290.1758246532-241182.602903563i | AD200: 9940.10013644376-703.972681274816i | AE200: -6.09193425421639+22.4621599371549i
... 139 more rows

Sheet Legal
